Workbook

Sheet Entrada (hidden)
C2: =IF(D25>2.4%,(Form_Detalhado!N27*12)+(Form_Detalhado!K20),60) -> 279
C3: Fundação de Previdência Complementar do Servidor Público Federal do Poder Judiciário (Funpresp-Jud)
C4: SIMULADOR DE MIGRAÇÃO
C6: DADOS DE ENTRADA
C7: Versão 1.1 de 2/1/2019 | D7: =CONCATENATE("Data da simulação: ",DAY(NOW())&"/"&MONTH(NOW())&"/"&YEAR(NOW())) -> Data da simulação: 21/3/2019 | F7: =DAY(NOW())&"/"&MONTH(NOW())&"/"&YEAR(NOW()) -> 21/3/2019
C8: Informações Cadastrais
C9: Informações Cadastrais | D9: ↓ Insira os dados na seguinte ordem ↓
C10: Nome: | D10: Maria
C11: Sexo: | D11: Masculino | F11: =IF(D11="Feminino","F","M") -> M
C12: Tipo de Participante: | D12: Patrocinado
C13: Data de nascimento (dd/mm/aaaa): | D13: 1965-07-17 | F13: =YEAR(F7)-YEAR(D13)+1 -> 55 | H13: =D22+H22 -> 11754.54534
C14: Data de Inscrição no Plano (hipotética): .................................. | D14: =TODAY() -> 2019-03-21
C15: Idade Atual: ........................................................................................ | D15: =YEARFRAC(D13,F7) -> 53.67777778
C16: Idade de aposentadoria projetada no RPPS ou RGPS (em anos): | D16: =IF(D13="","",IF(AND(F11="M",((F7-D13)/365.25)<=55),60,IF(AND(F11="F",((F7-D13)/365.25)<=50),55,TRUNC(((F7-D13)/365.25),0)))) -> 60
C17: Idade de aposentadoria projetada no RPPS ou RGPS (em anos): | D17: 62 | H17: Cargo/Função (CJ/CC/FC)
C18: Percentual de desconto para o RPPS da União | D18: 0.14 | H18: ou Local de Trabalho
C19: Aplica Aposentadoria Especial?: .......................................................... | D19: N
C20: Tempo Exigido para Aposentadoria Especial (anos): ................ | F20: =IF(AND(D25>1%,D26=""),"<<==Informar o prazo de recebimento do Benefício Suplementar!","") -> 
C21: Informações adicionais | F21: % Média | H21: ou Grat. Acumulação
C22: Valor da Remuneração/Subsídio (base de contribuição em R$): | D22: =H37 -> 11754.54534 | F22: 1
C23: Valor da Remuneração de Participação(1):
C24: Percentual escolhido de contribuição normal (6,5% a 8,5%): | D24: 0.085
C25: Percentual escolhido de contribuição facultativa (mínimo de 2,5%): | D25: =D18-D24 -> 0.055
C26: Prazo de recebimento Benefício Suplementar (de 60 a 480 meses*): | D26: =IF(C2>480,480,C2) -> 279
C27: Aporte inicial/portabilidade/saldo do(a) participante (R$):
C28: Valor do Benefício Especial (fornecido pelo Órgão ou projetado): | D28: 3000
C29: Dados Projetados
C30: Data Prevista para Aposentadoria: .................................................. | D30: =IF(OR(AND(F11="M",D15<=55),AND(F11="F",D15<=50)),EDATE(D13,IF(D17>1,D17,D16)*12),IF(D17>D16,EDATE(D13,D17*12),EDATE(D14,D31*12))) -> 2027-07-17
C31: Tempo a Decorrer até a Aposentadoria (anos): ............................. | D31: =IF(D17>1,D17,D16)-(INT(D15)) -> 9
C32: Expectativa de Vida na Aposentadoria (anos): .............................. | D32: =VLOOKUP(YEAR(D13)&"-"&IF(D17>1,D17,D16),Exp.Vida!$A$2:$E$14401,IF(F11="M",4,5),FALSE) -> 23.21461419
C33: DADOS DO RGPS
C34: Valor do Teto RGPS (R$): ..................................................................... | D34: ='Sim_Patro_3,5'!E31 -> 5839.45
C35: *utilizada a expectativa de sobrevida, no mínimo 60 e no máximo 480 meses | F35: Opção de usar o desconto do PSSS
F37: Base Contr. | H37: =H38*9.090909 -> 11754.54534
F38: Desc. PSSS | H38: 1293

Sheet Formulario (hidden)
E3: SIMULADOR DE BENEFÍCIOS PROGRAMADOS DA FUNPRESP-JUD
E4: =Entrada!#REF! -> 
E5: Fundação de Previdência Complementar do Servidor Público Federal do Poder Judiciário
E6: Data da Simulação: | G6: =Entrada!F7 -> 21/3/2019
C8: Informações Cadastrais
C9: Nome do Participante: | H9: =Entrada!D10 -> Maria
C10: Sexo: | H10: =IF(Entrada!F11="M","Masculino","Feminino") -> Masculino
C11: Data de Nascimento: | H11: =Entrada!D13 -> 1965-07-17
C12: Data Prevista para Aposentadoria: | H12: =Entrada!D30 -> 2027-07-17
C13: Idade Atual: | H13: =Entrada!D15&" anos" -> 53,6777777777778 anos
C14: Tipo de Participante: | H14: =Entrada!D12 -> Patrocinado
C15: Aplica Aposentadoria Especial?: | H15: =IF(Entrada!D19="N","Não","Sim") -> Não
C16: Tempo Exigido para Aposentadoria Especial (anos): | H16: =IF(Entrada!D19="N","",Entrada!D20) -> 
C17: =IF(Entrada!D12="Vinculado","Prazo para Recebimento do Benefício Suplementar (meses):","") ->  | H17: =IF(Entrada!D12="Vinculado",Entrada!D26,"") -> 
C19: Informações do Plano
C20: Tábua de Mortalidade: | H20: RP-2000 Geracional
C21: % Custeio do FCBE: | H21: =IF(Entrada!D12="Vinculado",0,'Sim_Patro_3,5'!I9) -> 0.13078
C22: % Custeio Administrativo sobre Contrib. Básica: | H22: ='Sim_Patro_3,5'!I10 -> 0.06
C23: % Custeio Administrativo sobre Contrib. Facultativa: | H23: ='Sim_Patro_3,5'!I11 -> 0
C25: Informações de Remuneração
C26: Valor da Base de Contribuição (R$): | H26: =IF(Entrada!D12="Vinculado",Entrada!D23,Entrada!H13) -> 11754.54534
C27: ( - ) Teto do RGPS: | H27: =IF(Entrada!D12="Vinculado"," - ",Entrada!D34) -> 5839.45
C28: ( = ) Valor da Remuneração de Participação: | H28: =IF(Entrada!D12="Vinculado",Entrada!D23,'Sim_Patro_3,5'!E17) -> 5915.1
C29: % Desejado para Contribuição Básica: | H29: =Entrada!D24 -> 0.085
C30: % Desejado para Contribuição Facultativa: | H30: =Entrada!D25 -> 0.055
C32: Dados Calculados
C33: =IF(Entrada!D12="Vinculado","Valor Total da Contribuição Vinculada:","Valor Total da Contribuição Básica:") -> Valor Total da Contribuição Básica: | H33: =IF(Entrada!D12="Vinculado",'Sim_Vinc_3,5'!E18,'Sim_Patro_3,5'!E18) -> 502.78
C34: =IF(Entrada!D12="Vinculado","( - ) Valor da Contribuição Vinculada para FCBE:","( - ) Valor da Contribuição Básica para FCBE:") -> ( - ) Valor da Contribuição Básica para FCBE: | H34: =IF(Entrada!D12="Vinculado",'Sim_Vinc_3,5'!E22,'Sim_Patro_3,5'!E22) -> 65.75
C35: =IF(Entrada!D12="Vinculado","( - ) Valor da Contribuição Vinculada para Desp Adm:","( - ) Valor da Contribuição Básica para Desp Adm:") -> ( - ) Valor da Contribuição Básica para Desp Adm: | H35: =IF(Entrada!D12="Vinculado",'Sim_Vinc_3,5'!E23,'Sim_Patro_3,5'!E23) -> 30.17
C36: =IF(Entrada!D12="Vinculado","( = ) Valor da Contribuição Vinculada para a Conta Individual:","( = ) Valor da Contribuição Básica para a Conta Individual:") -> ( = ) Valor da Contribuição Básica para a Conta Individual: | H36: =IF(Entrada!D12="Vinculado",'Sim_Vinc_3,5'!E20,'Sim_Patro_3,5'!E20) -> 406.86
C37: Valor Total da Contribuição Facultativa: | H37: =IF(Entrada!D12="Vinculado",'Sim_Vinc_3,5'!E19,'Sim_Patro_3,5'!E19) -> 325.33
C38: ( - ) Valor da Contribuição Facultativa para a Desp Adm: | H38: =IF(Entrada!D12="Vinculado",'Sim_Vinc_3,5'!E24,'Sim_Patro_3,5'!E24) -> 0
C39: ( = ) Valor da Contribuição Facultativa para a Conta Individual: | H39: =IF(Entrada!D12="Vinculado",'Sim_Vinc_3,5'!E21,'Sim_Patro_3,5'!E21) -> 325.33
C40: Valor Total Contribuição Básica + Contribuição Facultativa: | H40: =H39+H36 -> 732.19
H42: Taxa de Rentabilidade Real Anual
C43: Valores Projetados - Participante Patrocinado * | H43: 0.04 | I43: 0.045 | J43: 0.05 | K43: 0.055 | L43: 0.06
C44: Reserva Acumulada Normal - RAN: | H44: =IF(Entrada!$D$12="Patrocinado",H45+H46,"") -> 101674.44 | I44: =IF(Entrada!$D$12="Patrocinado",I45+I46,"") -> 103801.94 | J44: =IF(Entrada!$D$12="Patrocinado",J45+J46,"") -> 105977.5 | K44: =IF(Entrada!$D$12="Patrocinado",K45+K46,"") -> 108202.14 | L44: =IF(Entrada!$D$12="Patrocinado",L45+L46,"") -> 110476.88
C45: Conta Participante - CPART: | H45: =IF(Entrada!$D$12="Patrocinado",'Sim_Patro_3,5'!$I15,"") -> 50837.22 | I45: =IF(Entrada!$D$12="Patrocinado",Sim_Patro_4!$I15,"") -> 51900.97 | J45: =IF(Entrada!$D$12="Patrocinado",'Sim_Patro_4,5'!$I15,"") -> 52988.75 | K45: =IF(Entrada!$D$12="Patrocinado",Sim_Patro_5!$I15,"") -> 54101.07 | L45: =IF(Entrada!$D$12="Patrocinado",'Sim_Patro_5,5'!$I15,"") -> 55238.44
C46: Conta Patrocinadora - CPATR: | H46: =IF(Entrada!$D$12="Patrocinado",'Sim_Patro_3,5'!$I16,"") -> 50837.22 | I46: =IF(Entrada!$D$12="Patrocinado",Sim_Patro_4!$I16,"") -> 51900.97 | J46: =IF(Entrada!$D$12="Patrocinado",'Sim_Patro_4,5'!$I16,"") -> 52988.75 | K46: =IF(Entrada!$D$12="Patrocinado",Sim_Patro_5!$I16,"") -> 54101.07 | L46: =IF(Entrada!$D$12="Patrocinado",'Sim_Patro_5,5'!$I16,"") -> 55238.44
C47: Aporte Extraordinário (Lei 12618, 17, IV): | H47: =IF(Entrada!$D$12="Patrocinado",'Sim_Patro_3,5'!$I17,"") -> 0 | I47: =IF(Entrada!$D$12="Patrocinado",Sim_Patro_4!$I17,"") -> 0 | J47: =IF(Entrada!$D$12="Patrocinado",'Sim_Patro_4,5'!$I17,"") -> 0 | K47: =IF(Entrada!$D$12="Patrocinado",Sim_Patro_5!$I17,"") -> 0 | L47: =IF(Entrada!$D$12="Patrocinado",'Sim_Patro_5,5'!$I17,"") -> 0
C48: Aporte Inicial do Participante na Aposentadoria: | H48: =IF(Entrada!$D$12="Patrocinado",'Sim_Patro_3,5'!$I18,"") -> 0 | I48: =IF(Entrada!$D$12="Patrocinado",Sim_Patro_4!$I18,"") -> 0 | J48: =IF(Entrada!$D$12="Patrocinado",'Sim_Patro_4,5'!$I18,"") -> 0 | K48: =IF(Entrada!$D$12="Patrocinado",Sim_Patro_5!$I18,"") -> 0 | L48: =IF(Entrada!$D$12="Patrocinado",'Sim_Patro_5,5'!$I18,"") -> 0
C49: Reserva Acumulada Suplementar - RAS: | H49: =IF(Entrada!$D$12="Patrocinado",'Sim_Patro_3,5'!$I19,"") -> 40650.03 | I49: =IF(Entrada!$D$12="Patrocinado",Sim_Patro_4!$I19,"") -> 41500.62 | J49: =IF(Entrada!$D$12="Patrocinado",'Sim_Patro_4,5'!$I19,"") -> 42370.42 | K49: =IF(Entrada!$D$12="Patrocinado",Sim_Patro_5!$I19,"") -> 43259.84 | L49: =IF(Entrada!$D$12="Patrocinado",'Sim_Patro_5,5'!$I19,"") -> 44169.3
C50: Reserva Individual Total: | H50: =IF(Entrada!$D$12="Patrocinado",'Sim_Patro_3,5'!$I20,"") -> 142324.47 | I50: =IF(Entrada!$D$12="Patrocinado",Sim_Patro_4!$I20,"") -> 145302.56 | J50: =IF(Entrada!$D$12="Patrocinado",'Sim_Patro_4,5'!$I20,"") -> 148347.92 | K50: =IF(Entrada!$D$12="Patrocinado",Sim_Patro_5!$I20,"") -> 151461.98 | L50: =IF(Entrada!$D$12="Patrocinado",'Sim_Patro_5,5'!$I20,"") -> 154646.18
C52: Valor do Benefício Projetado na Funpresp-Jud: | H52: =IF(Entrada!$D$12="Patrocinado",'Sim_Patro_3,5'!$I22,"") -> 686.34 | I52: =IF(Entrada!$D$12="Patrocinado",Sim_Patro_4!$I22,"") -> 735.49 | J52: =IF(Entrada!$D$12="Patrocinado",'Sim_Patro_4,5'!$I22,"") -> 787.21 | K52: =IF(Entrada!$D$12="Patrocinado",Sim_Patro_5!$I22,"") -> 841.59 | L52: =IF(Entrada!$D$12="Patrocinado",'Sim_Patro_5,5'!$I22,"") -> 898.7
C53: Aposentadoria Normal (Base: RAN): | H53: =IF(Entrada!$D$12="Patrocinado",'Sim_Patro_3,5'!$I23,"") -> 490.45 | I53: =IF(Entrada!$D$12="Patrocinado",Sim_Patro_4!$I23,"") -> 525.56 | J53: =IF(Entrada!$D$12="Patrocinado",'Sim_Patro_4,5'!$I23,"") -> 562.51 | K53: =IF(Entrada!$D$12="Patrocinado",Sim_Patro_5!$I23,"") -> 601.36 | L53: =IF(Entrada!$D$12="Patrocinado",'Sim_Patro_5,5'!$I23,"") -> 642.16
C54: Benefício Suplementar: (Base: RAS + Aporte Inicial): | H54: =IF(Entrada!$D$12="Patrocinado",'Sim_Patro_3,5'!$I24,"") -> 195.89 | I54: =IF(Entrada!$D$12="Patrocinado",Sim_Patro_4!$I24,"") -> 209.93 | J54: =IF(Entrada!$D$12="Patrocinado",'Sim_Patro_4,5'!$I24,"") -> 224.7 | K54: =IF(Entrada!$D$12="Patrocinado",Sim_Patro_5!$I24,"") -> 240.23 | L54: =IF(Entrada!$D$12="Patrocinado",'Sim_Patro_5,5'!$I24,"") -> 256.54
C55: Valor do Benefício Projetado no RPPS: | H55: =IF(Entrada!$D$12="Patrocinado",'Sim_Patro_3,5'!$I25,"") -> 5839.45 | I55: =IF(Entrada!$D$12="Patrocinado",Sim_Patro_4!$I25,"") -> 5839.45 | J55: =IF(Entrada!$D$12="Patrocinado",'Sim_Patro_4,5'!$I25,"") -> 5839.45 | K55: =IF(Entrada!$D$12="Patrocinado",Sim_Patro_5!$I25,"") -> 5839.45 | L55: =IF(Entrada!$D$12="Patrocinado",'Sim_Patro_5,5'!$I25,"") -> 5839.45
C56: Valor total da renda na aposentadoria: | H56: =IF(Entrada!$D$12="Patrocinado",'Sim_Patro_3,5'!$I26,"") -> 6525.79 | I56: =IF(Entrada!$D$12="Patrocinado",Sim_Patro_4!$I26,"") -> 6574.94 | J56: =IF(Entrada!$D$12="Patrocinado",'Sim_Patro_4,5'!$I26,"") -> 6626.66 | K56: =IF(Entrada!$D$12="Patrocinado",Sim_Patro_5!$I26,"") -> 6681.04 | L56: =IF(Entrada!$D$12="Patrocinado",'Sim_Patro_5,5'!$I26,"") -> 6738.15
H58: Taxa de Rentabilidade Real Anual
C59: Valores Projetados - Participante Vinculado * | H59: 0.04 | I59: 0.045 | J59: 0.05 | K59: 0.055 | L59: 0.06
C60: Reserva Acumulada Normal - RAN: | H60: =IF(Entrada!$D$12="Vinculado",H61+H62,"") ->  | I60: =IF(Entrada!$D$12="Vinculado",I61+I62,"") ->  | J60: =IF(Entrada!$D$12="Vinculado",J61+J62,"") ->  | K60: =IF(Entrada!$D$12="Vinculado",K61+K62,"") ->  | L60: =IF(Entrada!$D$12="Vinculado",L61+L62,"") -> 
C61: Conta Participante - CPART: | H61: =IF(Entrada!$D$12="Vinculado",'Sim_Vinc_3,5'!$I15,"") ->  | I61: =IF(Entrada!$D$12="Vinculado",Sim_Vinc_4!$I15,"") ->  | J61: =IF(Entrada!$D$12="Vinculado",'Sim_Vinc_4,5'!$I15,"") ->  | K61: =IF(Entrada!$D$12="Vinculado",Sim_Vinc_5!$I15,"") ->  | L61: =IF(Entrada!$D$12="Vinculado",'Sim_Vinc_5,5'!$I15,"") -> 
C62: Conta Patrocinadora - CPATR: | H62: =IF(Entrada!$D$12="Vinculado",'Sim_Vinc_3,5'!$I16,"") ->  | I62: =IF(Entrada!$D$12="Vinculado",Sim_Vinc_4!$I16,"") ->  | J62: =IF(Entrada!$D$12="Vinculado",'Sim_Vinc_4,5'!$I16,"") ->  | K62: =IF(Entrada!$D$12="Vinculado",Sim_Vinc_5!$I16,"") ->  | L62: =IF(Entrada!$D$12="Vinculado",'Sim_Vinc_5,5'!$I16,"") -> 
C63: Aporte Inicial do Participante na Aposentadoria: | H63: =IF(Entrada!$D$12="Vinculado",'Sim_Vinc_3,5'!$I18,"") ->  | I63: =IF(Entrada!$D$12="Vinculado",Sim_Vinc_4!$I18,"") ->  | J63: =IF(Entrada!$D$12="Vinculado",'Sim_Vinc_4,5'!$I18,"") ->  | K63: =IF(Entrada!$D$12="Vinculado",Sim_Vinc_5!$I18,"") ->  | L63: =IF(Entrada!$D$12="Vinculado",'Sim_Vinc_5,5'!$I18,"") -> 
C64: Reserva Acumulada Suplementar - RAS: | H64: =IF(Entrada!$D$12="Vinculado",'Sim_Vinc_3,5'!$I19,"") ->  | I64: =IF(Entrada!$D$12="Vinculado",Sim_Vinc_4!$I19,"") ->  | J64: =IF(Entrada!$D$12="Vinculado",'Sim_Vinc_4,5'!$I19,"") ->  | K64: =IF(Entrada!$D$12="Vinculado",Sim_Vinc_5!$I19,"") ->  | L64: =IF(Entrada!$D$12="Vinculado",'Sim_Vinc_5,5'!$I19,"") -> 
C65: Reserva Individual Total: | H65: =IF(Entrada!$D$12="Vinculado",'Sim_Vinc_3,5'!$I20,"") ->  | I65: =IF(Entrada!$D$12="Vinculado",Sim_Vinc_4!$I20,"") ->  | J65: =IF(Entrada!$D$12="Vinculado",'Sim_Vinc_4,5'!$I20,"") ->  | K65: =IF(Entrada!$D$12="Vinculado",Sim_Vinc_5!$I20,"") ->  | L65: =IF(Entrada!$D$12="Vinculado",'Sim_Vinc_5,5'!$I20,"") -> 
C67: Valor do Benefício Projetado na Funpresp-Jud: | H67: =IF(Entrada!$D$12="Vinculado",'Sim_Vinc_3,5'!$I22,"") ->  | I67: =IF(Entrada!$D$12="Vinculado",Sim_Vinc_4!$I22,"") ->  | J67: =IF(Entrada!$D$12="Vinculado",'Sim_Vinc_4,5'!$I22,"") ->  | K67: =IF(Entrada!$D$12="Vinculado",Sim_Vinc_5!$I22,"") ->  | L67: =IF(Entrada!$D$12="Vinculado",'Sim_Vinc_5,5'!$I22,"") -> 
C68: Aposentadoria Normal (Base: RAN): | H68: =IF(Entrada!$D$12="Vinculado",'Sim_Vinc_3,5'!$I23,"") ->  | I68: =IF(Entrada!$D$12="Vinculado",Sim_Vinc_4!$I23,"") ->  | J68: =IF(Entrada!$D$12="Vinculado",'Sim_Vinc_4,5'!$I23,"") ->  | K68: =IF(Entrada!$D$12="Vinculado",Sim_Vinc_5!$I23,"") ->  | L68: =IF(Entrada!$D$12="Vinculado",'Sim_Vinc_5,5'!$I23,"") -> 
C69: Benefício Suplementar: (Base: RAS + Aporte Inicial): | H69: =IF(Entrada!$D$12="Vinculado",'Sim_Vinc_3,5'!$I24,"") ->  | I69: =IF(Entrada!$D$12="Vinculado",Sim_Vinc_4!$I24,"") ->  | J69: =IF(Entrada!$D$12="Vinculado",'Sim_Vinc_4,5'!$I24,"") ->  | K69: =IF(Entrada!$D$12="Vinculado",Sim_Vinc_5!$I24,"") ->  | L69: =IF(Entrada!$D$12="Vinculado",'Sim_Vinc_5,5'!$I24,"") -> 
C76: * Os resultados financeiros aqui apresentadas são meras estimativas. Tais rentabilidades e valores de benefícios futuros não constituem garantia por parte da Funpresp-Jud.

Sheet Form_Detalhado
E3: Fundação de Previdência Complementar do Servidor Público Federal do Poder Judiciário - Funpresp-Jud
E4: SIMULADOR DE MIGRAÇÃO | K4: Data da simulação: | N4: =Entrada!F7 -> 21/3/2019
E5: =Entrada!C7 -> Versão 1.1 de 2/1/2019
C8: INFORMAÇÕES
C9: =IF(H10="Feminino","Nome da Participante:","Nome do Participante:") -> Nome do Participante: | H9: =Entrada!D10 -> Maria
C10: Sexo: | H10: =Entrada!D11 -> Masculino | J10: =Entrada!$F$11 -> M
C11: Idade atual: | H11: =ROUNDDOWN(Entrada!D15,0)& " anos" -> 53 anos
C12: Data de nascimento: | H12: =Entrada!D13 -> 1965-07-17
C13: Data prevista para aposentadoria: | H13: =Entrada!D30 -> 2027-07-17
C14: Idade prevista na aposentadoria: | H14: =INT((H13-H12)/365)&" anos" -> 62 anos
C15: Tempo de contribuição previsto para o Plano: | H15: =CONCATENATE(INT(J15)," anos ",IF(K15<>"","e ",K15),K15,IF(K15=1," mês",IF(K15="",""," meses"))) -> 8 anos e 4 meses | J15: =IF(MONTH(H13)=MONTH(N4),ROUND(('Sim_Patro_3,5'!$E$26-'Sim_Patro_3,5'!$I$3)/365.25,0),ROUND(('Sim_Patro_3,5'!$E$26-'Sim_Patro_3,5'!$I$3)/365.25,4))+0.0001 -> 8.3232 | K15: =IF(ROUND((RIGHT(J15,4)/10000)*((365)/30),0)=0,"",ROUND((RIGHT(J15,4)/10000)*((365)/30),0)) -> 4
C16: Tipo de Participante: | H16: =Entrada!D12 -> Patrocinado
C17: Aplica Aposentadoria Especial?: | H17: =IF(Entrada!D19="N","Não","Sim") -> Não
C18: Tempo Exigido para Aposentadoria Especial (anos): | H18: =IF(Entrada!D19="N","",Entrada!D20) -> 
C19: Prazo de recebimento do Benefício Suplementar: | H19: =IF(Entrada!D26>60,CONCATENATE(Entrada!$D$26," meses"),"") -> 279 meses
C20: =IF(H16="Vinculado","","Expectativa de sobrevida na data da aposentadoria:") -> Expectativa de sobrevida na data da aposentadoria: | H20: =IF(H16="Vinculado","",IF(K20=0,CONCATENATE(LEFT(N27,2)," anos"),IF(K20=1,CONCATENATE(LEFT(N27,2)," anos e ",K20," mês"),CONCATENATE(LEFT(N27,2)," anos e ",K20," meses")))) -> 23 anos e 3 meses | J20: =TRUNC(Entrada!D32,4) -> 23.2146 | K20: =IF(ROUND((RIGHT(J20,4)/10000)*((365)/30),0)=12,0,ROUND((RIGHT(J20,4)/10000)*((365)/30),0)) -> 3
C21: Informações do Plano
C22: Tábua de Mortalidade: | I22: RP-2000 Geracional
C23: % Custeio do FCBE: | I23: =IF(Entrada!D12="Vinculado",0,'Sim_Patro_3,5'!I9) -> 0.13078
C24: % Custeio Administrativo sobre Contrib. Normal: | I24: ='Sim_Patro_3,5'!I10 -> 0.06
C25: % Custeio Administrativo sobre Contrib. Facultativa: | I25: ='Sim_Patro_3,5'!I11 -> 0
N27: =IF(ROUND((RIGHT(J20,4)/10000)*((365)/30),0)=12,INT(J20)+1,INT(J20)) -> 23
C28: INFORMAÇÕES FINANCEIRAS | F28: =IF(Entrada!H22,"Com CC, CJ, FC, Local de trabalho e/ou Grat. de Acum.","") ->  | J28: Contribuição | K28: Contribuição | M28: Contribuição RPPS (11%)
C29: Valor da base de contribuição: | I29: =IF(Entrada!D12="Vinculado",Entrada!D23,Entrada!H13) -> 11754.54534 | J29: Normal | K29: Facultativa | M29: Bruto | N29: =-I30*11% -> 642.3395
C30: Teto do Regime Geral de Previdência Social (RGPS): | I30: =IF(Entrada!D12="Vinculado"," - ",Entrada!D34*-1) -> -5839.45 | J30: (%) | K30: (%) | M30: IRPF (27,5%) | N30: =-N29*27.5% -> -176.6433625
C31: ( = ) Valor da remuneração de participação: | I31: =IF(Entrada!D12="Vinculado",Entrada!D23,'Sim_Patro_3,5'!E17) -> 5915.1 | J31: =Entrada!D24 -> 0.085 | K31: =Entrada!D25 -> 0.055 | M31: Desembolso | N31: =N29+N30 -> 465.6961375
C32: % Desejado para Contribuição Normal:
C33: % Desejado para Contribuição Facultativa:
J34: Total | K34: =J31+K31 -> 0.14 | M34: Total Liq. | N34: =N31+J50 -> 1066.075887
C36: Contribuições à Funpresp-Jud (RPC): | I36: Percentual | J36: Patrocinador | K36: Participante
C37: =IF(Entrada!D12="Vinculado","Valor total da contribuição vinculada:","Valor total da contribuição normal:") -> Valor total da contribuição normal: | I37: (%) | J37: =IF(Entrada!D12="Vinculado",0,'Sim_Patro_3,5'!E18) -> 502.78 | K37: =IF(Entrada!D12="Vinculado",'Sim_Vinc_3,5'!E18,'Sim_Patro_3,5'!E18) -> 502.78 | L37: ← Valor dedutível no IRPF (na fonte/ajuste anual) até 27,5%, independente do limite anual de 12% da renda tributável
C39: =IF(Entrada!D12="Vinculado","Fundo de Cobertura de Benefícios Extraordinários (FCBE):","Fundo de Cobertura de Benefícios Extraordinários (FCBE):") -> Fundo de Cobertura de Benefícios Extraordinários (FCBE): | I39: =I23 -> 0.13078 | J39: =IF(Entrada!D12="Vinculado",0,'Sim_Patro_3,5'!E22)*-1 -> -65.75 | K39: =IF(Entrada!D12="Vinculado",'Sim_Vinc_3,5'!E22,'Sim_Patro_3,5'!E22)*-1 -> -65.75
C40: Despesa administrativa (taxa de carregamento): | I40: =I24 -> 0.06 | J40: =IF(Entrada!D12="Vinculado",0,'Sim_Patro_3,5'!E23)*-1 -> -30.17 | K40: =IF(Entrada!D12="Vinculado",'Sim_Vinc_3,5'!E23,'Sim_Patro_3,5'!E23)*-1 -> -30.17
C41: =IF(Entrada!D12="Vinculado","( = ) Valor para a Reserva Individual (RAS):","( = ) Valor para a Reserva Individual Normal (RAN):") -> ( = ) Valor para a Reserva Individual Normal (RAN): | J41: =IF(Entrada!D12="Vinculado",0,'Sim_Patro_3,5'!E20) -> 406.86 | K41: =IF(Entrada!D12="Vinculado",'Sim_Vinc_3,5'!E20,'Sim_Patro_3,5'!E20) -> 406.86
C43: Total da contribuição Facultativa: | K43: =IF(Entrada!D12="Vinculado",'Sim_Vinc_3,5'!E19,'Sim_Patro_3,5'!E19) -> 325.33 | L43: ← Valor dedutível no IRPF (na fonte ou ajuste anual), até o limite anual de 12% da renda
C44: Despesa Administrativa (taxa de carregamento): | I44: =I25 -> 0 | K44: =IF(Entrada!D12="Vinculado",'Sim_Vinc_3,5'!E24,'Sim_Patro_3,5'!E24)*-1 -> 0
C45: ( = ) Valor para a Reserva Individual Suplementar (RAS): | K45: =IF(Entrada!D12="Vinculado",'Sim_Vinc_3,5'!E21,'Sim_Patro_3,5'!E21) -> 325.33
C47: =IF(H10="Feminino","Total da contribuição normal da Participante + Facultativa:","Total da contribuição normal do Participante + Facultativa:") -> Total da contribuição normal do Participante + Facultativa: | I47: =K43+K37 -> 828.11 | J47: IRPF (27,5%)
C48: Total da contribuição do Patrocinador: | I48: =J37 -> 502.78 | J48: =-(I47)*27.5% -> -227.73025
C49: =IF(H16="Vinculado","Total da Despesa administrativa:", "Total da Despesa administrativa e FCBE:") -> Total da Despesa administrativa e FCBE: | I49: =K39+J39+K40+J40+K44 -> -191.84 | J49: Desembolso | K49: Ganho mensal | L49: Ganho anual | N49: Ganho %
C50: =IF(H16="Vinculado","( = ) Total da Reserva Individual (RAS):","( = ) Total da Reserva Individual (RAN + RAS):") -> ( = ) Total da Reserva Individual (RAN + RAS): | I50: =K45+K41+J41 -> 1139.05 | J50: =(K37+K43)-((K37+K43)*27.5%) -> 600.37975 | K50: =I50-J50 -> 538.67025 | L50: =K50*13 -> 7002.71325 | N50: =K50/J50 -> 0.8972158871
C53: =IF(H10="Feminino","PARTICIPANTE PATROCINADA","PARTICIPANTE PATROCINADO") -> PARTICIPANTE PATROCINADO | I53: Taxa de Rentabilidade Real Anual
C54: *VALORES PROJETADOS (em reais) | I54: 0.035 | J54: 0.04 | K54: 0.045 | L54: 0.05 | N54: 0.055
C55: =IF(H10="Feminino","Reserva Normal (parcela da Participante):","Reserva Normal (parcela do Participante):") -> Reserva Normal (parcela do Participante): | I55: =IF(Entrada!$D$12="Patrocinado",'Sim_Patro_3,5'!$I15,"") -> 50837.22 | J55: =IF(Entrada!$D$12="Patrocinado",Sim_Patro_4!$I15,"") -> 51900.97 | K55: =IF(Entrada!$D$12="Patrocinado",'Sim_Patro_4,5'!$I15,"") -> 52988.75 | L55: =IF(Entrada!$D$12="Patrocinado",Sim_Patro_5!$I15,"") -> 54101.07 | N55: =IF(Entrada!$D$12="Patrocinado",'Sim_Patro_5,5'!$I15,"") -> 55238.44
C56: Reserva Normal (parcela do Patrocinador): | I56: =IF(Entrada!$D$12="Patrocinado",'Sim_Patro_3,5'!$I16,"") -> 50837.22 | J56: =IF(Entrada!$D$12="Patrocinado",Sim_Patro_4!$I16,"") -> 51900.97 | K56: =IF(Entrada!$D$12="Patrocinado",'Sim_Patro_4,5'!$I16,"") -> 52988.75 | L56: =IF(Entrada!$D$12="Patrocinado",Sim_Patro_5!$I16,"") -> 54101.07 | N56: =IF(Entrada!$D$12="Patrocinado",'Sim_Patro_5,5'!$I16,"") -> 55238.44
C57: Aporte extraordinário (art. 17, inciso IV, da Lei 12.618/2012): | I57: =IF(Entrada!$D$12="Patrocinado",'Sim_Patro_3,5'!$I17,"") -> 0 | J57: =IF(Entrada!$D$12="Patrocinado",Sim_Patro_4!$I17,"") -> 0 | K57: =IF(Entrada!$D$12="Patrocinado",'Sim_Patro_4,5'!$I17,"") -> 0 | L57: =IF(Entrada!$D$12="Patrocinado",Sim_Patro_5!$I17,"") -> 0 | N57: =IF(Entrada!$D$12="Patrocinado",'Sim_Patro_5,5'!$I17,"") -> 0
C58: Reserva Acumulada Normal (RAN): | I58: =IF(Entrada!$D$12="Patrocinado",I55+I56+I57,"") -> 101674.44 | J58: =IF(Entrada!$D$12="Patrocinado",J55+J56+J57,"") -> 103801.94 | K58: =IF(Entrada!$D$12="Patrocinado",K55+K56+K57,"") -> 105977.5 | L58: =IF(Entrada!$D$12="Patrocinado",L55+L56+L57,"") -> 108202.14 | N58: =IF(Entrada!$D$12="Patrocinado",N55+N56+N57,"") -> 110476.88
C59: =IF(H10="Feminino","Reserva contribuições facultativas (parcela da Participante):","Reserva contribuições facultativas (parcela do Participante):") -> Reserva contribuições facultativas (parcela do Participante): | I59: =IF(Entrada!$D$12="Patrocinado",'Sim_Patro_3,5'!$I19,"") -> 40650.03 | J59: =IF(Entrada!$D$12="Patrocinado",Sim_Patro_4!$I19,"") -> 41500.62 | K59: =IF(Entrada!$D$12="Patrocinado",'Sim_Patro_4,5'!$I19,"") -> 42370.42 | L59: =IF(Entrada!$D$12="Patrocinado",Sim_Patro_5!$I19,"") -> 43259.84 | N59: =IF(Entrada!$D$12="Patrocinado",'Sim_Patro_5,5'!$I19,"") -> 44169.3
C60: =IF(H10="Feminino","Reserva do aporte inicial/portabilidade/saldo da Participante:","Reserva do aporte inicial/portabilidade/saldo do Participante:") -> Reserva do aporte inicial/portabilidade/saldo do Participante: | I60: =IF(Entrada!$D$12="Patrocinado",'Sim_Patro_3,5'!$I18,"") -> 0 | J60: =IF(Entrada!$D$12="Patrocinado",Sim_Patro_4!$I18,"") -> 0 | K60: =IF(Entrada!$D$12="Patrocinado",'Sim_Patro_4,5'!$I18,"") -> 0 | L60: =IF(Entrada!$D$12="Patrocinado",Sim_Patro_5!$I18,"") -> 0 | N60: =IF(Entrada!$D$12="Patrocinado",'Sim_Patro_5,5'!$I18,"") -> 0
C61: Reserva Acumulada Suplementar (RAS): | I61: =IF(Entrada!$D$12="Patrocinado",I60+I59,"") -> 40650.03 | J61: =IF(Entrada!$D$12="Patrocinado",J60+J59,"") -> 41500.62 | K61: =IF(Entrada!$D$12="Patrocinado",K60+K59,"") -> 42370.42 | L61: =IF(Entrada!$D$12="Patrocinado",L60+L59,"") -> 43259.84 | N61: =IF(Entrada!$D$12="Patrocinado",N60+N59,"") -> 44169.3
C62: Reserva Individual Total (RAN + RAS): | I62: =IF(Entrada!$D$12="Patrocinado",'Sim_Patro_3,5'!$I20,"") -> 142324.47 | J62: =IF(Entrada!$D$12="Patrocinado",Sim_Patro_4!$I20,"") -> 145302.56 | K62: =IF(Entrada!$D$12="Patrocinado",'Sim_Patro_4,5'!$I20,"") -> 148347.92 | L62: =IF(Entrada!$D$12="Patrocinado",Sim_Patro_5!$I20,"") -> 151461.98 | N62: =IF(Entrada!$D$12="Patrocinado",'Sim_Patro_5,5'!$I20,"") -> 154646.18
C64: ="Valor da aposentadoria no RPC (prazo de "&H20&"):" -> Valor da aposentadoria no RPC (prazo de 23 anos e 3 meses): | I64: =IF(Entrada!$D$12="Patrocinado",'Sim_Patro_3,5'!$I23,"") -> 490.45 | J64: =IF(Entrada!$D$12="Patrocinado",Sim_Patro_4!$I23,"") -> 525.56 | K64: =IF(Entrada!$D$12="Patrocinado",'Sim_Patro_4,5'!$I23,"") -> 562.51 | L64: =IF(Entrada!$D$12="Patrocinado",Sim_Patro_5!$I23,"") -> 601.36 | N64: =IF(Entrada!$D$12="Patrocinado",'Sim_Patro_5,5'!$I23,"") -> 642.16
C65: ="Valor do benefício suplementar no RPC (prazo de "&H19&"):" -> Valor do benefício suplementar no RPC (prazo de 279 meses): | I65: =IF(Entrada!$D$12="Patrocinado",'Sim_Patro_3,5'!$I24,"") -> 195.89 | J65: =IF(Entrada!$D$12="Patrocinado",Sim_Patro_4!$I24,"") -> 209.93 | K65: =IF(Entrada!$D$12="Patrocinado",'Sim_Patro_4,5'!$I24,"") -> 224.7 | L65: =IF(Entrada!$D$12="Patrocinado",Sim_Patro_5!$I24,"") -> 240.23 | N65: =IF(Entrada!$D$12="Patrocinado",'Sim_Patro_5,5'!$I24,"") -> 256.54
C66: Total do benefício no RPC (mensal): | I66: =IF(I64="","",I64+I65) -> 686.34 | J66: =IF(J65="","",J64+J65) -> 735.49 | K66: =IF(K65="","",K64+K65) -> 787.21 | L66: =IF(L65="","",L64+L65) -> 841.59 | N66: =IF(N65="","",N64+N65) -> 898.7
C67: Benefício pelo RPPS da União (mensal): | I67: =IF(Entrada!$D$12="Patrocinado",'Sim_Patro_3,5'!$I25,"") -> 5839.45 | J67: =IF(Entrada!$D$12="Patrocinado",Sim_Patro_4!$I25,"") -> 5839.45 | K67: =IF(Entrada!$D$12="Patrocinado",'Sim_Patro_4,5'!$I25,"") -> 5839.45 | L67: =IF(Entrada!$D$12="Patrocinado",Sim_Patro_5!$I25,"") -> 5839.45 | N67: =IF(Entrada!$D$12="Patrocinado",'Sim_Patro_5,5'!$I25,"") -> 5839.45
C68: Benefício Especial pelo RPPS da União (mensal): | I68: =Entrada!D28 -> 3000 | J68: =Entrada!D28 -> 3000 | K68: =Entrada!D28 -> 3000 | L68: =Entrada!D28 -> 3000 | N68: =Entrada!D28 -> 3000
C69: Total da renda bruta na aposentadoria (mensal): | I69: =IF(Entrada!$D$12="Patrocinado",'Sim_Patro_3,5'!$I26,"")+I68 -> 9525.79 | J69: =IF(Entrada!$D$12="Patrocinado",Sim_Patro_4!$I26,"")+J68 -> 9574.94 | K69: =IF(Entrada!$D$12="Patrocinado",'Sim_Patro_4,5'!$I26,"")+K68 -> 9626.66 | L69: =IF(Entrada!$D$12="Patrocinado",Sim_Patro_5!$I26,"")+L68 -> 9681.04 | N69: =IF(Entrada!$D$12="Patrocinado",'Sim_Patro_5,5'!$I26,"")+N68 -> 9738.15
C71: QUADRO COM RESULTADOS DAS PROJEÇÕES (utilizada a rentabilidade real anual de 4,5%)
C73: =IF(Entrada!H22,"Com CC, CJ, FC, Local de trabalho e/ou Grat. de Acum.","") ->  | K73: Benef. Funpresp-Jud | N73: =H14 -> 62 anos
C74: Benef. RPPS | D74: =Entrada!F22 -> 1 | E74: =Entrada!D22*D74 -> 11754.54534 | G74: Benefício RPPS | I74: =J109-I30-((-I30)*27.5%) -> 5102.96125 | K74: Valor bruto projetado | N74: =K66 -> 787.21
C75: =IF(G107<11.1%,C107,C111) -> RPPS 14% | E75: =IF(G107=14%,-K108,J108) -> -828.1133472 | G75: Ben. Especial* | I75: =IF(G107<11.1%,N107,N111) -> 2175 | K75: 10% IRPF regressivo | N75: =-N74*10% -> -78.721
C76: IRPF de 27,5% | E76: =IF(G107=14%,-K111,J111) -> -2135.408797 | G76: Funpresp-Jud | I76: =N77 -> 703.8051005 | K76: 0,595% Tx Carregam. | N76: =-N74*0.595% -> -4.6838995
C77: Líquido sem a Migração | G77: Líquidos com a Migração | K77: Líquido projetado RPC | N77: =SUM(N74:N76) -> 703.8051005
C78: RPPS União | E78: =IF(G107<11.1%,J112,K112) -> 8791.023193 | G78: Total líquido | I78: =I74+I75+I76 -> 7981.76635 | K78: =IF(N78>0.01,"Ganho projetado","Perda projetada") -> Perda projetada | M78: =N78/E78 -> -0.09205490924 | N78: =I78-E78 -> -809.2568421
C79: *Com abatimento APENAS do IRPF, nos termos do Parecer AGU 93/DECOR/CGU/AGU, de 19/12/2018, aprovado pela chefe AGU, e Solução de Consulta Cosit 42, de 14/2/2019.
C84: =IF(H10="Feminino","PARTICIPANTE VINCULADA","PARTICIPANTE VINCULADO") -> PARTICIPANTE VINCULADO | I84: Taxa de Rentabilidade Real Anual
C85: *VALORES PROJETADOS (em reais) | I85: 0.035 | J85: 0.04 | K85: 0.045 | M85: 0.05 | N85: 0.055
C86: =IF(H10="Feminino","Reserva da Participante Patrocinada:","Reserva do Participante Patrocinado:") -> Reserva do Participante Patrocinado: | I86: =IF(Entrada!$D$12="Vinculado",'Sim_Vinc_3,5'!$I15,"") ->  | J86: =IF(Entrada!$D$12="Vinculado",Sim_Vinc_4!$I15,"") ->  | K86: =IF(Entrada!$D$12="Vinculado",'Sim_Vinc_4,5'!$I15,"") ->  | M86: =IF(Entrada!$D$12="Vinculado",Sim_Vinc_5!$I15,"") ->  | N86: =IF(Entrada!$D$12="Vinculado",'Sim_Vinc_5,5'!$I15,"") -> 
C87: Reserva do Patrocinador: | I87: =IF(Entrada!$D$12="Vinculado",'Sim_Vinc_3,5'!$I16,"") ->  | J87: =IF(Entrada!$D$12="Vinculado",Sim_Vinc_4!$I16,"") ->  | K87: =IF(Entrada!$D$12="Vinculado",'Sim_Vinc_4,5'!$I16,"") ->  | M87: =IF(Entrada!$D$12="Vinculado",Sim_Vinc_5!$I16,"") ->  | N87: =IF(Entrada!$D$12="Vinculado",'Sim_Vinc_5,5'!$I16,"") -> 
C88: Reserva Acumulada Normal (RAN): | I88: =IF(Entrada!$D$12="Vinculado",I86+I87,"") ->  | J88: =IF(Entrada!$D$12="Vinculado",J86+J87,"") ->  | K88: =IF(Entrada!$D$12="Vinculado",K86+K87,"") ->  | M88: =IF(Entrada!$D$12="Vinculado",M86+M87,"") ->  | N88: =IF(Entrada!$D$12="Vinculado",N86+N87,"") -> 
C89: Reserva do aporte inicial/portabilidade/saldo do Participante Patrocinado: | I89: =IF(Entrada!$D$12="Vinculado",0,"") ->  | J89: =IF(Entrada!$D$12="Vinculado",0,"") ->  | K89: =IF(Entrada!$D$12="Vinculado",0,"") ->  | M89: =IF(Entrada!$D$12="Vinculado",0,"") ->  | N89: =IF(Entrada!$D$12="Vinculado",0,"") -> 
C90: =IF(H10="Feminino","Reserva Vinculada (parcela da Participante):","Reserva Vinculada (parcela do Participante):") -> Reserva Vinculada (parcela do Participante): | I90: =IF(Entrada!$D$12="Patrocinado","",'Sim_Vinc_3,5'!K19) ->  | J90: =IF(Entrada!$D$12="Patrocinado","",Sim_Vinc_4!K19) ->  | K90: =IF(Entrada!$D$12="Patrocinado","",'Sim_Vinc_4,5'!K19) ->  | M90: =IF(Entrada!$D$12="Patrocinado","",Sim_Vinc_5!K19) ->  | N90: =IF(Entrada!$D$12="Patrocinado","",'Sim_Vinc_5,5'!K19) -> 
C91: =IF(H10="Feminino","Reserva Facultativa (parcela da Participante):","Reserva Facultativa (parcela do Participante):") -> Reserva Facultativa (parcela do Participante): | I91: =IF(Entrada!$D$12="Patrocinado","",'Sim_Vinc_3,5'!L19) ->  | J91: =IF(Entrada!$D$12="Patrocinado","",Sim_Vinc_4!L19) ->  | K91: =IF(Entrada!$D$12="Patrocinado","",'Sim_Vinc_4,5'!L19) ->  | M91: =IF(Entrada!$D$12="Patrocinado","",Sim_Vinc_5!L19) ->  | N91: =IF(Entrada!$D$12="Patrocinado","",'Sim_Vinc_5,5'!L19) -> 
C92: =IF(H10="Feminino","Reserva do aporte inicial/portabilidade/saldo da Participante:","Reserva do aporte inicial/portabilidade/saldo do Participante:") -> Reserva do aporte inicial/portabilidade/saldo do Participante: | I92: =IF(Entrada!$D$12="Vinculado",'Sim_Vinc_3,5'!$I18,"") ->  | J92: =IF(Entrada!$D$12="Vinculado",Sim_Vinc_4!$I18,"") ->  | K92: =IF(Entrada!$D$12="Vinculado",'Sim_Vinc_4,5'!$I18,"") ->  | M92: =IF(Entrada!$D$12="Vinculado",Sim_Vinc_5!$I18,"") ->  | N92: =IF(Entrada!$D$12="Vinculado",'Sim_Vinc_5,5'!$I18,"") -> 
C93: Reserva Acumulada Suplementar (RAS) | I93: =IF(Entrada!$D$12="Vinculado",I90+I92+I91,"") ->  | J93: =IF(Entrada!$D$12="Vinculado",J90+J92+J91,"") ->  | K93: =IF(Entrada!$D$12="Vinculado",K90+K92+K91,"") ->  | M93: =IF(Entrada!$D$12="Vinculado",M90+M92+M91,"") ->  | N93: =IF(Entrada!$D$12="Vinculado",N90+N92+N91,"") -> 
C94: Reserva individual total (RAN + RAS): | I94: =IF(Entrada!$D$12="Vinculado",'Sim_Vinc_3,5'!$I20,"") ->  | J94: =IF(Entrada!$D$12="Vinculado",Sim_Vinc_4!$I20,"") ->  | K94: =IF(Entrada!$D$12="Vinculado",'Sim_Vinc_4,5'!$I20,"") ->  | M94: =IF(Entrada!$D$12="Vinculado",Sim_Vinc_5!$I20,"") ->  | N94: =IF(Entrada!$D$12="Vinculado",'Sim_Vinc_5,5'!$I20,"") -> 
C96: Valor do Benefício Projetado na Funpresp-Jud: | I96: =IF(Entrada!$D$12="Vinculado",'Sim_Vinc_3,5'!$I22,"") ->  | J96: =IF(Entrada!$D$12="Vinculado",Sim_Vinc_4!$I22,"") ->  | K96: =IF(Entrada!$D$12="Vinculado",'Sim_Vinc_4,5'!$I22,"") ->  | M96: =IF(Entrada!$D$12="Vinculado",Sim_Vinc_5!$I22,"") ->  | N96: =IF(Entrada!$D$12="Vinculado",'Sim_Vinc_5,5'!$I22,"") -> 
C98: Benefício de aposentadoria normal projetado no RPC (mês): | I98: =IF(Entrada!$D$12="Vinculado",'Sim_Vinc_3,5'!$I23,"") ->  | J98: =IF(Entrada!$D$12="Vinculado",Sim_Vinc_4!$I23,"") ->  | K98: =IF(Entrada!$D$12="Vinculado",'Sim_Vinc_4,5'!$I23,"") ->  | M98: =IF(Entrada!$D$12="Vinculado",Sim_Vinc_5!$I23,"") ->  | N98: =IF(Entrada!$D$12="Vinculado",'Sim_Vinc_5,5'!$I23,"") -> 
C99: ="Valor do benefício suplementar no RPC (prazo de "&H19&"):" -> Valor do benefício suplementar no RPC (prazo de 279 meses): | I99: =IF(Entrada!$D$12="Vinculado",'Sim_Vinc_3,5'!$I24,"") ->  | J99: =IF(Entrada!$D$12="Vinculado",Sim_Vinc_4!$I24,"") ->  | K99: =IF(Entrada!$D$12="Vinculado",'Sim_Vinc_4,5'!$I24,"") ->  | M99: =IF(Entrada!$D$12="Vinculado",Sim_Vinc_5!$I24,"") ->  | N99: =IF(Entrada!$D$12="Vinculado",'Sim_Vinc_5,5'!$I24,"") -> 
H101: =IF(M78<0%,"Não indicação:","Indicação:") -> Não indicação: | J101: =IF(M78<=-20%,"Altíssima",IF(M78<=-10%,"Alta",IF(M78<=-5%,"Leve",IF(M78<=-0.1%,"Neutra -",IF(M78>=20%,"Altíssima",IF(M78>=10%,"Alta",IF(M78>=5%,"Leve",IF(M78>=0%,"Neutra +","")))))))) -> Leve
C103: Os resultados financeiros projetados são estimativas. As rentabilidades e valores de benefícios futuros não constituem garantia por parte da Funpresp-Jud.
C107: RPPS 11% | G107: =Entrada!D18 -> 0.14 | J107: =E74+I30 -> 5915.095337 | K107: =E74+I30 -> 5915.095337 | N107: =K68-(K68*27.5%) -> 2175
C108: IRPF de 27,5% | J108: =J107*11% -> 650.6604871 | K108: =K107*14% -> 828.1133472
J109: 869.36 | K109: 869.36
C111: RPPS 14% | J111: =(E74-J108)*27.5%-J109 -> 2184.208334 | K111: =(E74-K108)*27.5%-K109 -> 2135.408797 | N111: =K68-(K68*27.5%) -> 2175
C112: IRPF de 27,5% | J112: =E74-J111-J108 -> 8919.676516 | K112: =E74-K111-K108 -> 8791.023193

Sheet Form_Resumo (hidden)
E3: SIMULADOR DE BENEFÍCIOS PROGRAMADOS DA FUNPRESP-JUD
E4: =Entrada!#REF! -> 
E5: Fundação de Previdência Complementar do Servidor Público Federal do Poder Judiciário
E6: Data da Simulação: | G6: =Entrada!F7 -> 21/3/2019
C8: INFORMAÇÕES
C9: Nome do Participante: | H9: =Entrada!D10 -> Maria
C10: Sexo: | H10: =IF(Entrada!F11="M","Masculino","Feminino") -> Masculino
C11: Data de nascimento: | H11: =Entrada!D13 -> 1965-07-17
C12: Data prevista para aposentadoria: | H12: =Entrada!D30 -> 2027-07-17
C13: Idade Atual: | H13: =Entrada!D15&" anos" -> 53,6777777777778 anos
C14: Tipo de Participante: | H14: =Entrada!D12 -> Patrocinado
C15: Aplica Aposentadoria Especial?: | H15: =IF(Entrada!D19="N","Não","Sim") -> Não
C16: Tempo Exigido para Aposentadoria Especial (anos): | H16: =IF(Entrada!D19="N","",Entrada!D20) -> 
C17: Idade prevista na aposentadoria (em anos): | H17: =YEARFRAC(H11,H12) -> 62
C18: Tempo de contribuição previsto para o Plano: | H18: =CONCATENATE(LEFT(I18,2)," anos e ",J18, " meses") -> 8, anos e 0 meses | I18: =TRUNC(('Sim_Patro_3,5'!$E$26-'Sim_Patro_3,5'!$I$3)/365.25,4) -> 8.323 | J18: =ROUND((RIGHT(I18,4)/10000)*((365)/30),0) -> 0
C19: Prazo de recebimento do benefício suplementar: | H19: =IF(Entrada!D26>0,CONCATENATE(Entrada!$D$26," meses"),"") -> 279 meses
C20: =IF(Form_Detalhado!H16="Vinculado","","Expectativa de vida no momento da aposentadoria:") -> Expectativa de vida no momento da aposentadoria: | H20: =IF(Form_Detalhado!H16="Vinculado","",CONCATENATE(LEFT(I20,2)," anos e ",J20," meses")) -> 23 anos e 3 meses | I20: =TRUNC(Entrada!D32,4) -> 23.2146 | J20: =ROUND((RIGHT(I20,4)/10000)*((365)/30),0) -> 3
C22: Tábua de Mortalidade: | H22: RP-2000 Geracional
C23: % Custeio do FCBE: | H23: =IF(Entrada!D12="Vinculado",0,'Sim_Patro_3,5'!I9) -> 0.13078
C24: % Custeio Administrativo sobre Contrib. Básica: | H24: ='Sim_Patro_3,5'!I10 -> 0.06
C25: % Custeio Administrativo sobre Contrib. Facultativa: | H25: ='Sim_Patro_3,5'!I11 -> 0
C27: Informações de Remuneração | I27: Pct Contribuição Básica (%) | J27: Pct Contribuição Facultativa (%)
C28: Valor da Base de Contribuição (R$): | H28: =IF(Entrada!D12="Vinculado",Entrada!D23,Entrada!H13) -> 11754.54534
C29: ( - ) Teto do RGPS: | H29: =IF(Entrada!D12="Vinculado"," - ",Entrada!D34) -> 5839.45
C30: ( = ) Valor da Remuneração de Participação: | H30: =IF(Entrada!D12="Vinculado",Entrada!D23,'Sim_Patro_3,5'!E17) -> 5915.1 | I30: =Entrada!D24 -> 0.085 | J30: =Entrada!D25 -> 0.055
C31: % Desejado para Contribuição Básica:
C32: % Desejado para Contribuição Facultativa:
C34: Contribuições ao Regime de Previdência Complementar (RPC) | H34: Participante | I34: Patrocinador
C35: =IF(Entrada!D12="Vinculado","Valor total da contribuição vinculada:","Valor total da contribuição básica:") -> Valor total da contribuição básica: | H35: =IF(Entrada!D12="Vinculado",'Sim_Vinc_3,5'!E18,'Sim_Patro_3,5'!E18) -> 502.78 | I35: =IF(Entrada!D12="Vinculado",0,'Sim_Patro_3,5'!E18) -> 502.78
C37: =IF(Entrada!D12="Vinculado","( - ) Valor da Contribuição Vinculada para FCBE:","( - ) Valor da Contribuição Básica para FCBE:") -> ( - ) Valor da Contribuição Básica para FCBE: | H37: =IF(Entrada!D12="Vinculado",'Sim_Vinc_3,5'!E22,'Sim_Patro_3,5'!E22) -> 65.75
C38: =IF(Entrada!D12="Vinculado","( - ) Valor da Contribuição Vinculada para Desp Adm :","( - ) Valor da Contribuição Básica para Desp Adm:") -> ( - ) Valor da Contribuição Básica para Desp Adm: | H38: =IF(Entrada!D12="Vinculado",'Sim_Vinc_3,5'!E23,'Sim_Patro_3,5'!E23) -> 30.17
C39: =IF(Entrada!D12="Vinculado","( = ) Valor da Contribuição Vinculada para a Conta Individual:","( = ) Valor da Contribuição Básica para a Conta Individual:") -> ( = ) Valor da Contribuição Básica para a Conta Individual: | H39: =IF(Entrada!D12="Vinculado",'Sim_Vinc_3,5'!E20,'Sim_Patro_3,5'!E20) -> 406.86
C41: Valor total da contribuição facultativa: | H41: =IF(Entrada!D12="Vinculado",'Sim_Vinc_3,5'!E19,'Sim_Patro_3,5'!E19) -> 325.33 | I41: 0
C42: ( - ) Valor da Contribuição Facultativa para a Desp Adm: | H42: =IF(Entrada!D12="Vinculado",'Sim_Vinc_3,5'!E24,'Sim_Patro_3,5'!E24) -> 0 | I42: =H25 -> 0
C43: ( = ) Valor da Contribuição Facultativa para a Conta Individual: | H43: =IF(Entrada!D12="Vinculado",'Sim_Vinc_3,5'!E21,'Sim_Patro_3,5'!E21) -> 325.33
C45: Total contribuição básica + contribuição facultativa: | H45: =H41+H35+I35 -> 1330.89 | I45: (valor bruto, sem a restituição do Imposto de Renda)
C49: Participante Patrocinado | H49: Taxa de Rentabilidade Real Anual
C50: *Valores projetados | H50: 0.035 | I50: 0.04 | J50: 0.045 | K50: 0.05 | L50: 0.055
C51: Reserva Acumulada Normal - RAN: | H51: =IF(Entrada!$D$12="Patrocinado",H52+H53,"") -> 101674.44 | I51: =IF(Entrada!$D$12="Patrocinado",I52+I53,"") -> 103801.94 | J51: =IF(Entrada!$D$12="Patrocinado",J52+J53,"") -> 105977.5 | K51: =IF(Entrada!$D$12="Patrocinado",K52+K53,"") -> 108202.14 | L51: =IF(Entrada!$D$12="Patrocinado",L52+L53,"") -> 110476.88
C52: Reserva Participante: | H52: =IF(Entrada!$D$12="Patrocinado",'Sim_Patro_3,5'!$I15,"") -> 50837.22 | I52: =IF(Entrada!$D$12="Patrocinado",Sim_Patro_4!$I15,"") -> 51900.97 | J52: =IF(Entrada!$D$12="Patrocinado",'Sim_Patro_4,5'!$I15,"") -> 52988.75 | K52: =IF(Entrada!$D$12="Patrocinado",Sim_Patro_5!$I15,"") -> 54101.07 | L52: =IF(Entrada!$D$12="Patrocinado",'Sim_Patro_5,5'!$I15,"") -> 55238.44
C53: Reserva Patrocinadora: | H53: =IF(Entrada!$D$12="Patrocinado",'Sim_Patro_3,5'!$I16,"") -> 50837.22 | I53: =IF(Entrada!$D$12="Patrocinado",Sim_Patro_4!$I16,"") -> 51900.97 | J53: =IF(Entrada!$D$12="Patrocinado",'Sim_Patro_4,5'!$I16,"") -> 52988.75 | K53: =IF(Entrada!$D$12="Patrocinado",Sim_Patro_5!$I16,"") -> 54101.07 | L53: =IF(Entrada!$D$12="Patrocinado",'Sim_Patro_5,5'!$I16,"") -> 55238.44
C54: Aporte Extraordinário (Lei 12618, 17, IV): | H54: =IF(Entrada!$D$12="Patrocinado",'Sim_Patro_3,5'!$I17,"") -> 0 | I54: =IF(Entrada!$D$12="Patrocinado",Sim_Patro_4!$I17,"") -> 0 | J54: =IF(Entrada!$D$12="Patrocinado",'Sim_Patro_4,5'!$I17,"") -> 0 | K54: =IF(Entrada!$D$12="Patrocinado",Sim_Patro_5!$I17,"") -> 0 | L54: =IF(Entrada!$D$12="Patrocinado",'Sim_Patro_5,5'!$I17,"") -> 0
C55: Reserva do Aporte Inicial: | H55: =IF(Entrada!$D$12="Patrocinado",'Sim_Patro_3,5'!$I18,"") -> 0 | I55: =IF(Entrada!$D$12="Patrocinado",Sim_Patro_4!$I18,"") -> 0 | J55: =IF(Entrada!$D$12="Patrocinado",'Sim_Patro_4,5'!$I18,"") -> 0 | K55: =IF(Entrada!$D$12="Patrocinado",Sim_Patro_5!$I18,"") -> 0 | L55: =IF(Entrada!$D$12="Patrocinado",'Sim_Patro_5,5'!$I18,"") -> 0
C56: Reserva Acumulada Facultativa: | H56: =IF(Entrada!$D$12="Patrocinado",'Sim_Patro_3,5'!$I19,"") -> 40650.03 | I56: =IF(Entrada!$D$12="Patrocinado",Sim_Patro_4!$I19,"") -> 41500.62 | J56: =IF(Entrada!$D$12="Patrocinado",'Sim_Patro_4,5'!$I19,"") -> 42370.42 | K56: =IF(Entrada!$D$12="Patrocinado",Sim_Patro_5!$I19,"") -> 43259.84 | L56: =IF(Entrada!$D$12="Patrocinado",'Sim_Patro_5,5'!$I19,"") -> 44169.3
C57: Reserva Acumulada Normal (RAN): | H57: =IF(Entrada!$D$12="Patrocinado",'Sim_Patro_3,5'!$I20,"") -> 142324.47 | I57: =IF(Entrada!$D$12="Patrocinado",Sim_Patro_4!$I20,"") -> 145302.56 | J57: =IF(Entrada!$D$12="Patrocinado",'Sim_Patro_4,5'!$I20,"") -> 148347.92 | K57: =IF(Entrada!$D$12="Patrocinado",Sim_Patro_5!$I20,"") -> 151461.98 | L57: =IF(Entrada!$D$12="Patrocinado",'Sim_Patro_5,5'!$I20,"") -> 154646.18
C59: Benefício de aposentadoria normal projetado no RPC (mês): | H59: =IF(Entrada!$D$12="Patrocinado",'Sim_Patro_3,5'!$I23,"") -> 490.45 | I59: =IF(Entrada!$D$12="Patrocinado",Sim_Patro_4!$I23,"") -> 525.56 | J59: =IF(Entrada!$D$12="Patrocinado",'Sim_Patro_4,5'!$I23,"") -> 562.51 | K59: =IF(Entrada!$D$12="Patrocinado",Sim_Patro_5!$I23,"") -> 601.36 | L59: =IF(Entrada!$D$12="Patrocinado",'Sim_Patro_5,5'!$I23,"") -> 642.16
C60: Benefício suplementar projetado no RPC (mês): | H60: =IF(Entrada!$D$12="Patrocinado",'Sim_Patro_3,5'!$I24,"") -> 195.89 | I60: =IF(Entrada!$D$12="Patrocinado",Sim_Patro_4!$I24,"") -> 209.93 | J60: =IF(Entrada!$D$12="Patrocinado",'Sim_Patro_4,5'!$I24,"") -> 224.7 | K60: =IF(Entrada!$D$12="Patrocinado",Sim_Patro_5!$I24,"") -> 240.23 | L60: =IF(Entrada!$D$12="Patrocinado",'Sim_Patro_5,5'!$I24,"") -> 256.54
C61: Total do benefício projetado no RPC (mês): | H61: =IF(Entrada!$D$12="Patrocinado",H59+H60,"") -> 686.34 | I61: =IF(Entrada!$D$12="Patrocinado",I59+I60,"") -> 735.49 | J61: =IF(Entrada!$D$12="Patrocinado",J59+J60,"") -> 787.21 | K61: =IF(Entrada!$D$12="Patrocinado",K59+K60,"") -> 841.59 | L61: =IF(Entrada!$D$12="Patrocinado",L59+L60,"") -> 898.7
C62: Benefício projetado no RPPS (mês): | H62: =IF(Entrada!$D$12="Patrocinado",'Sim_Patro_3,5'!$I25,"") -> 5839.45 | I62: =IF(Entrada!$D$12="Patrocinado",Sim_Patro_4!$I25,"") -> 5839.45 | J62: =IF(Entrada!$D$12="Patrocinado",'Sim_Patro_4,5'!$I25,"") -> 5839.45 | K62: =IF(Entrada!$D$12="Patrocinado",Sim_Patro_5!$I25,"") -> 5839.45 | L62: =IF(Entrada!$D$12="Patrocinado",'Sim_Patro_5,5'!$I25,"") -> 5839.45
C63: Total da renda projetada na aposentadoria (mês): | H63: =IF(Entrada!$D$12="Patrocinado",'Sim_Patro_3,5'!$I26,"") -> 6525.79 | I63: =IF(Entrada!$D$12="Patrocinado",Sim_Patro_4!$I26,"") -> 6574.94 | J63: =IF(Entrada!$D$12="Patrocinado",'Sim_Patro_4,5'!$I26,"") -> 6626.66 | K63: =IF(Entrada!$D$12="Patrocinado",Sim_Patro_5!$I26,"") -> 6681.04 | L63: =IF(Entrada!$D$12="Patrocinado",'Sim_Patro_5,5'!$I26,"") -> 6738.15
C65: Participante Vinculado | H65: Taxa de Rentabilidade Real Anual
C66: *Valores projetados | H66: 0.035 | I66: 0.04 | J66: 0.045 | K66: 0.05 | L66: 0.055
C67: Reserva Acumulada Normal - RAN: | H67: =IF(Entrada!$D$12="Vinculado",H68+H69,"") ->  | I67: =IF(Entrada!$D$12="Vinculado",I68+I69,"") ->  | J67: =IF(Entrada!$D$12="Vinculado",J68+J69,"") ->  | K67: =IF(Entrada!$D$12="Vinculado",K68+K69,"") ->  | L67: =IF(Entrada!$D$12="Vinculado",L68+L69,"") -> 
C68: Conta Participante - CPART: | H68: =IF(Entrada!$D$12="Vinculado",'Sim_Vinc_3,5'!$I15,"") ->  | I68: =IF(Entrada!$D$12="Vinculado",Sim_Vinc_4!$I15,"") ->  | J68: =IF(Entrada!$D$12="Vinculado",'Sim_Vinc_4,5'!$I15,"") ->  | K68: =IF(Entrada!$D$12="Vinculado",Sim_Vinc_5!$I15,"") ->  | L68: =IF(Entrada!$D$12="Vinculado",'Sim_Vinc_5,5'!$I15,"") -> 
C69: Conta Patrocinadora - CPATR: | H69: =IF(Entrada!$D$12="Vinculado",'Sim_Vinc_3,5'!$I16,"") ->  | I69: =IF(Entrada!$D$12="Vinculado",Sim_Vinc_4!$I16,"") ->  | J69: =IF(Entrada!$D$12="Vinculado",'Sim_Vinc_4,5'!$I16,"") ->  | K69: =IF(Entrada!$D$12="Vinculado",Sim_Vinc_5!$I16,"") ->  | L69: =IF(Entrada!$D$12="Vinculado",'Sim_Vinc_5,5'!$I16,"") -> 
C70: Reserva do aporte inicial/portabilidade/saldo do Participante: | H70: =IF(Entrada!$D$12="Vinculado",'Sim_Vinc_3,5'!$I18,"") ->  | I70: =IF(Entrada!$D$12="Vinculado",Sim_Vinc_4!$I18,"") ->  | J70: =IF(Entrada!$D$12="Vinculado",'Sim_Vinc_4,5'!$I18,"") ->  | K70: =IF(Entrada!$D$12="Vinculado",Sim_Vinc_5!$I18,"") ->  | L70: =IF(Entrada!$D$12="Vinculado",'Sim_Vinc_5,5'!$I18,"") -> 
C71: Reserva Acumulada Suplementar (RAS): | H71: =IF(Entrada!$D$12="Vinculado",'Sim_Vinc_3,5'!$I19,"") ->  | I71: =IF(Entrada!$D$12="Vinculado",Sim_Vinc_4!$I19,"") ->  | J71: =IF(Entrada!$D$12="Vinculado",'Sim_Vinc_4,5'!$I19,"") ->  | K71: =IF(Entrada!$D$12="Vinculado",Sim_Vinc_5!$I19,"") ->  | L71: =IF(Entrada!$D$12="Vinculado",'Sim_Vinc_5,5'!$I19,"") -> 
C72: Reserva individual total (RAN + RAS): | H72: =IF(Entrada!$D$12="Vinculado",'Sim_Vinc_3,5'!$I20,"") ->  | I72: =IF(Entrada!$D$12="Vinculado",Sim_Vinc_4!$I20,"") ->  | J72: =IF(Entrada!$D$12="Vinculado",'Sim_Vinc_4,5'!$I20,"") ->  | K72: =IF(Entrada!$D$12="Vinculado",Sim_Vinc_5!$I20,"") ->  | L72: =IF(Entrada!$D$12="Vinculado",'Sim_Vinc_5,5'!$I20,"") -> 
C74: Benefício suplementar projetado no RPC (mês): | H74: =IF(Entrada!$D$12="Vinculado",'Sim_Vinc_3,5'!$I22,"") ->  | I74: =IF(Entrada!$D$12="Vinculado",Sim_Vinc_4!$I22,"") ->  | J74: =IF(Entrada!$D$12="Vinculado",'Sim_Vinc_4,5'!$I22,"") ->  | K74: =IF(Entrada!$D$12="Vinculado",Sim_Vinc_5!$I22,"") ->  | L74: =IF(Entrada!$D$12="Vinculado",'Sim_Vinc_5,5'!$I22,"") -> 
C75: Aposentadoria Normal (Base: RAN): | H75: =IF(Entrada!$D$12="Vinculado",'Sim_Vinc_3,5'!$I23,"") ->  | I75: =IF(Entrada!$D$12="Vinculado",Sim_Vinc_4!$I23,"") ->  | J75: =IF(Entrada!$D$12="Vinculado",'Sim_Vinc_4,5'!$I23,"") ->  | K75: =IF(Entrada!$D$12="Vinculado",Sim_Vinc_5!$I23,"") ->  | L75: =IF(Entrada!$D$12="Vinculado",'Sim_Vinc_5,5'!$I23,"") -> 
C76: Benefício Suplementar: (Base: RAS + Aporte Inicial): | H76: =IF(Entrada!$D$12="Vinculado",'Sim_Vinc_3,5'!$I24,"") ->  | I76: =IF(Entrada!$D$12="Vinculado",Sim_Vinc_4!$I24,"") ->  | J76: =IF(Entrada!$D$12="Vinculado",'Sim_Vinc_4,5'!$I24,"") ->  | K76: =IF(Entrada!$D$12="Vinculado",Sim_Vinc_5!$I24,"") ->  | L76: =IF(Entrada!$D$12="Vinculado",'Sim_Vinc_5,5'!$I24,"") -> 
C79: * Os resultados financeiros aqui apresentadas são meras estimativas. Tais rentabilidades e valores de benefícios futuros não constituem garantia por parte da Funpresp-Jud.

Sheet Sim_Patro_3,5 (hidden)
C2: SIMULADOR DE BENEFÍCIOS PROGRAMADOS DA FUNPRESP-JUD
C3: Módulo Participante Patrocinado | H3: Data da Simulação: | I3: =Entrada!F7 -> 21/3/2019
C4: DADOS DO SERVIDOR | G4: DADOS PLANO DE BENEFÍCIOS
D5: Informações Cadastrais | H5: Hipóteses Atuariais
D6: Tipo de Participante: ........................................................................... | E6: =Entrada!D12 -> Patrocinado | H6: % Taxa Real de Juros (anual): ....................................................................... | I6: 0.035
D7: Data de Nascimento: ......................................................................... | E7: =Entrada!D13 -> 1965-07-17 | H7: Tábua de Mortalidade: ....................................................................... | I7: RP-2000 Geracional
D8: Sexo: ........................................................................................ | E8: =Entrada!F11 -> M | H8: Plano de Custeio
D9: Aplica Aposentadoria Especial?: .......................................................... | E9: =Entrada!D19 -> N | H9: % Custeio do FCBE: ....................................................................... | I9: 0.13078
D10: Tempo Exigido para Aposentadoria Especial (anos): ............... | E10: =Entrada!D20 -> 0 | H10: % Custeio Administrativo sobre Contrib. Básica: ....................................................................... | I10: 0.06
D11: Prazo renda suplementar | E11: =Entrada!$D$26 -> 279 | H11: % Custeio Administrativo sobre Contrib. Facultativa: ....................................................................... | I11: 0
D12: Valor da Base de Contribuição (R$): ............................................... | E12: =Entrada!H13 -> 11754.54534 | G12: RESULTADOS PROJETADOS
D13: % Desejado para Contribuição Básica: ................................................. | E13: =Entrada!D24 -> 0.085 | H13: Reservas Projetadas
D14: % Desejado para Contribuição Facultativa (%): ........................ | E14: =Entrada!D25 -> 0.055 | H14: Reserva Acumulada Normal - RAN: ....................................................................... | I14: =I15+I16 -> 101674.44
D15: Dados Calculados | H15: Conta Participante - CPART: ....................................................................... | I15: =ROUND(FV((1+I6)^(1/12)-1,(E26-I3)/30.4375,-E20,0)+FV(I6,(E26-I3)/365.25,-E20,0),2) -> 50837.22
D16: Idade atual (anos): ............................................................................ | E16: =TRUNC((I3-E7)/365.25,0) -> 53 | H16: Conta Patrocinadora - CPATR: ....................................................................... | I16: =I15 -> 50837.22
D17: Valor da Remuneração de Participação: ............................................ | E17: =ROUND(MAX(E12-E31,0),2) -> 5915.1 | H17: Aporte Extraordinário (Lei 12618, 17, IV): ..................................... | I17: =ROUND(IF(E9="S",I14*(35/E10-1),IF(E8="F",I14*(35/30-1),0)),2) -> 0
D18: Valor Total da Contribuição Básica: ............................................. | E18: =ROUND(E17*E13,2) -> 502.78 | H18: Aporte Inicial na Aposentadoria: ....................................................................... | I18: =FV(I6,Entrada!D31,0,-Entrada!D27) -> 0
D19: Valor Total da Contribuição Facultativa: ..................................... | E19: =ROUND(E17*E14,2) -> 325.33 | H19: Reserva Acumulada Suplementar - RAS: ....................................................................... | I19: =ROUND(FV((1+I6)^(1/12)-1,(E26-I3)/30.4375,-E21,0)+FV(I6,(E26-I3)/365.25,-E21,0),2) -> 40650.03
D20: Valor da Contribuição Básica para a Conta Individual: ........................ | E20: =ROUND((1-I10-I9)*E18,2) -> 406.86 | H20: Reserva Individual Total: ....................................................................... | I20: =I14+I18+I19+I17 -> 142324.47
D21: Valor da Contribuição Facultativa para a Conta Individual: ......... | E21: =ROUND((E14*(1-I11))*E17,2) -> 325.33 | H21: Benefícios Projetados
D22: Valor da Contribuição Básica para FCBE: ........................ | E22: =ROUND((I9)*E18,2) -> 65.75 | H22: Valor do Benefício Projetado na Funpresp-Jud: ....................................................................... | I22: =SUM(I23:I24) -> 686.34
D23: Valor da Contribuição Básica para Desp Adm: ........................... | E23: =ROUND((I10)*E18,2) -> 30.17 | H23: Aposentadoria Normal (Base: RAN): ....................................................................... | I23: =ROUND((I14+I17)/(PV((1+I6)^(1/12)-1,VLOOKUP(YEAR(E7)&"-"&E28,Exp.Vida!$A$2:$E$14401,IF(E8="M",4,5),FALSE)*12,-1,0)+PV(I6,VLOOKUP(YEAR(E7)&"-"&E28,Exp.Vida!$A$2:$E$14401,IF(E8="M",4,5),FALSE),-1,0)),2) -> 490.45
D24: Valor da Contribuição Facultativa para a Desp Adm: ................ | E24: =ROUND((I11)*E19,2) -> 0 | H24: Benefício Suplementar: (Base: RAS + Aporte Inicial):................... | I24: =IF(I18+I19>0,ROUND((I19+I18)/(PV((1+I6)^(1/12)-1,E11,-1,0)+PV(I6,E11/12,-1,0)),2),0) -> 195.89
D25: Dados Projetados | H25: Valor do Benefício Projetado no RPPS: ....................................................................... | I25: =E31 -> 5839.45
D26: Data prevista para aposentadoria: ...................................................] | E26: =Entrada!D30 -> 2027-07-17 | H26: Valor total da renda na aposentadoria: ............................................................................. | I26: =I22+I25 -> 6525.79
D27: Tempo a decorrer até a aposentadoria (anos): ...................................... | E27: =E28-E16 -> 9 | H27: Índice de Reposição
D28: Idade na Aposentadoria (anos): ......................................................... | E28: =ROUND((E26-E7)/365.25,0) -> 62 | H28: Benefício Funpresp / Remuneração de Participação: .......................... | I28: =I22/E17 -> 0.1160318507
D29: Expectativa de vida na aposentadoria (anos): ..................................... | E29: =Entrada!D32 -> 23.21461419 | H29: Renda na Aposentadoria / Base de Contribuição: ....................................................................... | I29: =I26/E12 -> 0.5551716219
C30: DADOS DO RGPS
D31: Valor do Teto RGPS (R$): ....................................................... | E31: 5839.45
D32: Versão 1.3 - 31/8/2013

Sheet Sim_Patro_4 (hidden)
C2: SIMULADOR DE BENEFÍCIOS PROGRAMADOS DA FUNPRESP-JUD
C3: Módulo Participante Patrocinado | H3: Data da Simulação: | I3: =Entrada!F7 -> 21/3/2019
C4: DADOS DO SERVIDOR | G4: DADOS PLANO DE BENEFÍCIOS
D5: Informações Cadastrais | H5: Hipóteses Atuariais
D6: Tipo de Participante: ........................................................................... | E6: =Entrada!D12 -> Patrocinado | H6: % Taxa Real de Juros (anual): ....................................................................... | I6: 0.04
D7: Data de Nascimento: ......................................................................... | E7: =Entrada!D13 -> 1965-07-17 | H7: Tábua de Mortalidade: ....................................................................... | I7: RP-2000 Geracional
D8: Sexo: ........................................................................................ | E8: =Entrada!F11 -> M | H8: Plano de Custeio
D9: Aplica Aposentadoria Especial?: .......................................................... | E9: =Entrada!D19 -> N | H9: % Custeio do FCBE: ....................................................................... | I9: 0.13078
D10: Tempo Exigido para Aposentadoria Especial (anos): ............... | E10: =Entrada!D20 -> 0 | H10: % Custeio Administrativo sobre Contrib. Básica: ....................................................................... | I10: ='Sim_Patro_3,5'!I10 -> 0.06
D11: Prazo renda suplementar | E11: =Entrada!$D$26 -> 279 | H11: % Custeio Administrativo sobre Contrib. Facultativa: ....................................................................... | I11: 0
D12: Valor da Base de Contribuição (R$): ............................................... | E12: =Entrada!H13 -> 11754.54534 | G12: RESULTADOS PROJETADOS
D13: % Desejado para Contribuição Básica: ................................................. | E13: =Entrada!D24 -> 0.085 | H13: Reservas Projetadas
D14: % Desejado para Contribuição Facultativa (%): ........................ | E14: =Entrada!D25 -> 0.055 | H14: Reserva Acumulada Normal - RAN: ....................................................................... | I14: =I15+I16 -> 103801.94
D15: Dados Calculados | H15: Conta Participante - CPART: ....................................................................... | I15: =ROUND(FV((1+I6)^(1/12)-1,(E26-I3)/30.4375,-E20,0)+FV(I6,(E26-I3)/365.25,-E20,0),2) -> 51900.97
D16: Idade atual (anos): ............................................................................ | E16: =TRUNC((I3-E7)/365.25,0) -> 53 | H16: Conta Patrocinadora - CPATR: ....................................................................... | I16: =I15 -> 51900.97
D17: Valor da Remuneração de Participação: ............................................ | E17: =ROUND(MAX(E12-E31,0),2) -> 5915.1 | H17: Aporte Extraordinário (Lei 12618, 17, IV): ..................................... | I17: =ROUND(IF(E9="S",I14*(35/E10-1),IF(E8="F",I14*(35/30-1),0)),2) -> 0
D18: Valor Total da Contribuição Básica: ............................................. | E18: =ROUND(E17*E13,2) -> 502.78 | H18: Aporte Inicial na Aposentadoria: ....................................................................... | I18: =FV(I6,Entrada!D31,0,-Entrada!D27) -> 0
D19: Valor Total da Contribuição Facultativa: ..................................... | E19: =ROUND(E17*E14,2) -> 325.33 | H19: Reserva Acumulada Suplementar - RAS: ....................................................................... | I19: =ROUND(FV((1+I6)^(1/12)-1,(E26-I3)/30.4375,-E21,0)+FV(I6,(E26-I3)/365.25,-E21,0),2) -> 41500.62
D20: Valor da Contribuição Básica para a Conta Individual: ........................ | E20: =ROUND((1-I10-I9)*E18,2) -> 406.86 | H20: Reserva Individual Total: ....................................................................... | I20: =I14+I18+I19+I17 -> 145302.56
D21: Valor da Contribuição Facultativa para a Conta Individual: ......... | E21: =ROUND((E14*(1-I11))*E17,2) -> 325.33 | H21: Benefícios Projetados
D22: Valor da Contribuição Básica para FCBE: ........................ | E22: =ROUND((I9)*E18,2) -> 65.75 | H22: Valor do Benefício Projetado na Funpresp-Jud: ....................................................................... | I22: =SUM(I23:I24) -> 735.49
D23: Valor da Contribuição Básica para Desp Adm: ........................... | E23: =ROUND((I10)*E18,2) -> 30.17 | H23: Aposentadoria Normal (Base: RAN): ....................................................................... | I23: =ROUND((I14+I17)/(PV((1+I6)^(1/12)-1,VLOOKUP(YEAR(E7)&"-"&E28,Exp.Vida!$A$2:$E$14401,IF(E8="M",4,5),FALSE)*12,-1,0)+PV(I6,VLOOKUP(YEAR(E7)&"-"&E28,Exp.Vida!$A$2:$E$14401,IF(E8="M",4,5),FALSE),-1,0)),2) -> 525.56
D24: Valor da Contribuição Facultativa para a Desp Adm: ................ | E24: =ROUND((I11)*E19,2) -> 0 | H24: Benefício Suplementar: (Base: RAS + Aporte Inicial):................... | I24: =IF(I18+I19>0,ROUND((I19+I18)/(PV((1+I6)^(1/12)-1,E11,-1,0)+PV(I6,E11/12,-1,0)),2),0) -> 209.93
D25: Dados Projetados | H25: Valor do Benefício Projetado no RPPS: ....................................................................... | I25: =E31 -> 5839.45
D26: Data prevista para aposentadoria: ...................................................] | E26: =Entrada!D30 -> 2027-07-17 | H26: Valor total da renda na aposentadoria: ............................................................................. | I26: =I22+I25 -> 6574.94
D27: Tempo a decorrer até a aposentadoria (anos): ...................................... | E27: =E28-E16 -> 9 | H27: Índice de Reposição
D28: Idade na Aposentadoria (anos): ......................................................... | E28: =ROUND((E26-E7)/365.25,0) -> 62 | H28: Benefício Funpresp / Remuneração de Participação: .......................... | I28: =I22/E17 -> 0.1243410931
D29: Expectativa de vida na aposentadoria (anos): ..................................... | E29: =Entrada!D32 -> 23.21461419 | H29: Renda na Aposentadoria / Base de Contribuição: ....................................................................... | I29: =I26/E12 -> 0.5593529832
C30: DADOS DO RGPS
D31: Valor do Teto RGPS (R$): ....................................................... | E31: ='Sim_Patro_3,5'!E31 -> 5839.45
D32: Versão 1.3 - 31/8/2013

Sheet Sim_Patro_4,5 (hidden)
C2: SIMULADOR DE BENEFÍCIOS PROGRAMADOS DA FUNPRESP-JUD
C3: Módulo Participante Patrocinado | H3: Data da Simulação: | I3: =Entrada!F7 -> 21/3/2019
C4: DADOS DO SERVIDOR | G4: DADOS PLANO DE BENEFÍCIOS
D5: Informações Cadastrais | H5: Hipóteses Atuariais
D6: Tipo de Participante: ........................................................................... | E6: =Entrada!D12 -> Patrocinado | H6: % Taxa Real de Juros (anual): ....................................................................... | I6: 0.045
D7: Data de Nascimento: ......................................................................... | E7: =Entrada!D13 -> 1965-07-17 | H7: Tábua de Mortalidade: ....................................................................... | I7: RP-2000 Geracional
D8: Sexo: ........................................................................................ | E8: =Entrada!F11 -> M | H8: Plano de Custeio
D9: Aplica Aposentadoria Especial?: .......................................................... | E9: =Entrada!D19 -> N | H9: % Custeio do FCBE: ....................................................................... | I9: 0.13078
D10: Tempo Exigido para Aposentadoria Especial (anos): ............... | E10: =Entrada!D20 -> 0 | H10: % Custeio Administrativo sobre Contrib. Básica: ....................................................................... | I10: ='Sim_Patro_3,5'!I10 -> 0.06
D11: Prazo renda suplementar | E11: =Entrada!$D$26 -> 279 | H11: % Custeio Administrativo sobre Contrib. Facultativa: ....................................................................... | I11: 0
D12: Valor da Base de Contribuição (R$): ............................................... | E12: =Entrada!H13 -> 11754.54534 | G12: RESULTADOS PROJETADOS
D13: % Desejado para Contribuição Básica: ................................................. | E13: =Entrada!D24 -> 0.085 | H13: Reservas Projetadas
D14: % Desejado para Contribuição Facultativa (%): ........................ | E14: =Entrada!D25 -> 0.055 | H14: Reserva Acumulada Normal - RAN: ....................................................................... | I14: =I15+I16 -> 105977.5
D15: Dados Calculados | H15: Conta Participante - CPART: ....................................................................... | I15: =ROUND(FV((1+I6)^(1/12)-1,(E26-I3)/30.4375,-E20,0)+FV(I6,(E26-I3)/365.25,-E20,0),2) -> 52988.75
D16: Idade atual (anos): ............................................................................ | E16: =TRUNC((I3-E7)/365.25,0) -> 53 | H16: Conta Patrocinadora - CPATR: ....................................................................... | I16: =I15 -> 52988.75
D17: Valor da Remuneração de Participação: ............................................ | E17: =ROUND(MAX(E12-E31,0),2) -> 5915.1 | H17: Aporte Extraordinário (Lei 12618, 17, IV): ..................................... | I17: =ROUND(IF(E9="S",I14*(35/E10-1),IF(E8="F",I14*(35/30-1),0)),2) -> 0
D18: Valor Total da Contribuição Básica: ............................................. | E18: =ROUND(E17*E13,2) -> 502.78 | H18: Aporte Inicial na Aposentadoria: ....................................................................... | I18: =FV(I6,Entrada!D31,0,-Entrada!D27) -> 0
D19: Valor Total da Contribuição Facultativa: ..................................... | E19: =ROUND(E17*E14,2) -> 325.33 | H19: Reserva Acumulada Suplementar - RAS: ....................................................................... | I19: =ROUND(FV((1+I6)^(1/12)-1,(E26-I3)/30.4375,-E21,0)+FV(I6,(E26-I3)/365.25,-E21,0),2) -> 42370.42
D20: Valor da Contribuição Básica para a Conta Individual: ........................ | E20: =ROUND((1-I10-I9)*E18,2) -> 406.86 | H20: Reserva Individual Total: ....................................................................... | I20: =I14+I18+I19+I17 -> 148347.92
D21: Valor da Contribuição Facultativa para a Conta Individual: ......... | E21: =ROUND((E14*(1-I11))*E17,2) -> 325.33 | H21: Benefícios Projetados
D22: Valor da Contribuição Básica para FCBE: ........................ | E22: =ROUND((I9)*E18,2) -> 65.75 | H22: Valor do Benefício Projetado na Funpresp-Jud: ....................................................................... | I22: =SUM(I23:I24) -> 787.21
D23: Valor da Contribuição Básica para Desp Adm: ........................... | E23: =ROUND((I10)*E18,2) -> 30.17 | H23: Aposentadoria Normal (Base: RAN): ....................................................................... | I23: =ROUND((I14+I17)/(PV((1+I6)^(1/12)-1,VLOOKUP(YEAR(E7)&"-"&E28,Exp.Vida!$A$2:$E$14401,IF(E8="M",4,5),FALSE)*12,-1,0)+PV(I6,VLOOKUP(YEAR(E7)&"-"&E28,Exp.Vida!$A$2:$E$14401,IF(E8="M",4,5),FALSE),-1,0)),2) -> 562.51
D24: Valor da Contribuição Facultativa para a Desp Adm: ................ | E24: =ROUND((I11)*E19,2) -> 0 | H24: Benefício Suplementar: (Base: RAS + Aporte Inicial):................... | I24: =IF(I18+I19>0,ROUND((I19+I18)/(PV((1+I6)^(1/12)-1,E11,-1,0)+PV(I6,E11/12,-1,0)),2),0) -> 224.7
D25: Dados Projetados | H25: Valor do Benefício Projetado no RPPS: ....................................................................... | I25: =E31 -> 5839.45
D26: Data prevista para aposentadoria: ...................................................] | E26: =Entrada!D30 -> 2027-07-17 | H26: Valor total da renda na aposentadoria: ............................................................................. | I26: =I22+I25 -> 6626.66
D27: Tempo a decorrer até a aposentadoria (anos): ...................................... | E27: =E28-E16 -> 9 | H27: Índice de Reposição
D28: Idade na Aposentadoria (anos): ......................................................... | E28: =ROUND((E26-E7)/365.25,0) -> 62 | H28: Benefício Funpresp / Remuneração de Participação: .......................... | I28: =I22/E17 -> 0.1330848168
D29: Expectativa de vida na aposentadoria (anos): ..................................... | E29: =Entrada!D32 -> 23.21461419 | H29: Renda na Aposentadoria / Base de Contribuição: ....................................................................... | I29: =I26/E12 -> 0.5637529832
C30: DADOS DO RGPS
D31: Valor do Teto RGPS (R$): ....................................................... | E31: ='Sim_Patro_3,5'!E31 -> 5839.45
D32: Versão 1.3 - 31/8/2013

Sheet Sim_Patro_5 (hidden)
C2: SIMULADOR DE BENEFÍCIOS PROGRAMADOS DA FUNPRESP-JUD
C3: Módulo Participante Patrocinado | H3: Data da Simulação: | I3: =Entrada!F7 -> 21/3/2019
C4: DADOS DO SERVIDOR | G4: DADOS PLANO DE BENEFÍCIOS
D5: Informações Cadastrais | H5: Hipóteses Atuariais
D6: Tipo de Participante: ........................................................................... | E6: =Entrada!D12 -> Patrocinado | H6: % Taxa Real de Juros (anual): ....................................................................... | I6: 0.05
D7: Data de Nascimento: ......................................................................... | E7: =Entrada!D13 -> 1965-07-17 | H7: Tábua de Mortalidade: ....................................................................... | I7: RP-2000 Geracional
D8: Sexo: ........................................................................................ | E8: =Entrada!F11 -> M | H8: Plano de Custeio
D9: Aplica Aposentadoria Especial?: .......................................................... | E9: =Entrada!D19 -> N | H9: % Custeio do FCBE: ....................................................................... | I9: 0.13078
D10: Tempo Exigido para Aposentadoria Especial (anos): ............... | E10: =Entrada!D20 -> 0 | H10: % Custeio Administrativo sobre Contrib. Básica: ....................................................................... | I10: ='Sim_Patro_3,5'!I10 -> 0.06
D11: Prazo renda suplementar | E11: =Entrada!$D$26 -> 279 | H11: % Custeio Administrativo sobre Contrib. Facultativa: ....................................................................... | I11: 0
D12: Valor da Base de Contribuição (R$): ............................................... | E12: =Entrada!H13 -> 11754.54534 | G12: RESULTADOS PROJETADOS
D13: % Desejado para Contribuição Básica: ................................................. | E13: =Entrada!D24 -> 0.085 | H13: Reservas Projetadas
D14: % Desejado para Contribuição Facultativa (%): ........................ | E14: =Entrada!D25 -> 0.055 | H14: Reserva Acumulada Normal - RAN: ....................................................................... | I14: =I15+I16 -> 108202.14
D15: Dados Calculados | H15: Conta Participante - CPART: ....................................................................... | I15: =ROUND(FV((1+I6)^(1/12)-1,(E26-I3)/30.4375,-E20,0)+FV(I6,(E26-I3)/365.25,-E20,0),2) -> 54101.07
D16: Idade atual (anos): ............................................................................ | E16: =TRUNC((I3-E7)/365.25,0) -> 53 | H16: Conta Patrocinadora - CPATR: ....................................................................... | I16: =I15 -> 54101.07
D17: Valor da Remuneração de Participação: ............................................ | E17: =ROUND(MAX(E12-E31,0),2) -> 5915.1 | H17: Aporte Extraordinário (Lei 12618, 17, IV): ..................................... | I17: =ROUND(IF(E9="S",I14*(35/E10-1),IF(E8="F",I14*(35/30-1),0)),2) -> 0
D18: Valor Total da Contribuição Básica: ............................................. | E18: =ROUND(E17*E13,2) -> 502.78 | H18: Aporte Inicial na Aposentadoria: ....................................................................... | I18: =FV(I6,Entrada!D31,0,-Entrada!D27) -> 0
D19: Valor Total da Contribuição Facultativa: ..................................... | E19: =ROUND(E17*E14,2) -> 325.33 | H19: Reserva Acumulada Suplementar - RAS: ....................................................................... | I19: =ROUND(FV((1+I6)^(1/12)-1,(E26-I3)/30.4375,-E21,0)+FV(I6,(E26-I3)/365.25,-E21,0),2) -> 43259.84
D20: Valor da Contribuição Básica para a Conta Individual: ........................ | E20: =ROUND((1-I10-I9)*E18,2) -> 406.86 | H20: Reserva Individual Total: ....................................................................... | I20: =I14+I18+I19+I17 -> 151461.98
D21: Valor da Contribuição Facultativa para a Conta Individual: ......... | E21: =ROUND((E14*(1-I11))*E17,2) -> 325.33 | H21: Benefícios Projetados
D22: Valor da Contribuição Básica para FCBE: ........................ | E22: =ROUND((I9)*E18,2) -> 65.75 | H22: Valor do Benefício Projetado na Funpresp-Jud: ....................................................................... | I22: =SUM(I23:I24) -> 841.59
D23: Valor da Contribuição Básica para Desp Adm: ........................... | E23: =ROUND((I10)*E18,2) -> 30.17 | H23: Aposentadoria Normal (Base: RAN): ....................................................................... | I23: =ROUND((I14+I17)/(PV((1+I6)^(1/12)-1,VLOOKUP(YEAR(E7)&"-"&E28,Exp.Vida!$A$2:$E$14401,IF(E8="M",4,5),FALSE)*12,-1,0)+PV(I6,VLOOKUP(YEAR(E7)&"-"&E28,Exp.Vida!$A$2:$E$14401,IF(E8="M",4,5),FALSE),-1,0)),2) -> 601.36
D24: Valor da Contribuição Facultativa para a Desp Adm: ................ | E24: =ROUND((I11)*E19,2) -> 0 | H24: Benefício Suplementar: (Base: RAS + Aporte Inicial):................... | I24: =IF(I18+I19>0,ROUND((I19+I18)/(PV((1+I6)^(1/12)-1,E11,-1,0)+PV(I6,E11/12,-1,0)),2),0) -> 240.23
D25: Dados Projetados | H25: Valor do Benefício Projetado no RPPS: ....................................................................... | I25: =E31 -> 5839.45
D26: Data prevista para aposentadoria: ...................................................] | E26: =Entrada!D30 -> 2027-07-17 | H26: Valor total da renda na aposentadoria: ............................................................................. | I26: =I22+I25 -> 6681.04
D27: Tempo a decorrer até a aposentadoria (anos): ...................................... | E27: =E28-E16 -> 9 | H27: Índice de Reposição
D28: Idade na Aposentadoria (anos): ......................................................... | E28: =ROUND((E26-E7)/365.25,0) -> 62 | H28: Benefício Funpresp / Remuneração de Participação: .......................... | I28: =I22/E17 -> 0.1422782371
D29: Expectativa de vida na aposentadoria (anos): ..................................... | E29: =Entrada!D32 -> 23.21461419 | H29: Renda na Aposentadoria / Base de Contribuição: ....................................................................... | I29: =I26/E12 -> 0.5683792787
C30: DADOS DO RGPS
D31: Valor do Teto RGPS (R$): ....................................................... | E31: ='Sim_Patro_3,5'!E31 -> 5839.45
D32: Versão 1.3 - 31/8/2013

Sheet Sim_Patro_5,5 (hidden)
C2: SIMULADOR DE BENEFÍCIOS PROGRAMADOS DA FUNPRESP-JUD
C3: Módulo Participante Patrocinado | H3: Data da Simulação: | I3: =Entrada!F7 -> 21/3/2019
C4: DADOS DO SERVIDOR | G4: DADOS PLANO DE BENEFÍCIOS
D5: Informações Cadastrais | H5: Hipóteses Atuariais
D6: Tipo de Participante: ........................................................................... | E6: =Entrada!D12 -> Patrocinado | H6: % Taxa Real de Juros (anual): ....................................................................... | I6: 0.055
D7: Data de Nascimento: ......................................................................... | E7: =Entrada!D13 -> 1965-07-17 | H7: Tábua de Mortalidade: ....................................................................... | I7: RP-2000 Geracional
D8: Sexo: ........................................................................................ | E8: =Entrada!F11 -> M | H8: Plano de Custeio
D9: Aplica Aposentadoria Especial?: .......................................................... | E9: =Entrada!D19 -> N | H9: % Custeio do FCBE: ....................................................................... | I9: 0.13078
D10: Tempo Exigido para Aposentadoria Especial (anos): ............... | E10: =Entrada!D20 -> 0 | H10: % Custeio Administrativo sobre Contrib. Básica: ....................................................................... | I10: ='Sim_Patro_3,5'!I10 -> 0.06
D11: Prazo renda suplementar | E11: =Entrada!$D$26 -> 279 | H11: % Custeio Administrativo sobre Contrib. Facultativa: ....................................................................... | I11: 0
D12: Valor da Base de Contribuição (R$): ............................................... | E12: =Entrada!H13 -> 11754.54534 | G12: RESULTADOS PROJETADOS
D13: % Desejado para Contribuição Básica: ................................................. | E13: =Entrada!D24 -> 0.085 | H13: Reservas Projetadas
D14: % Desejado para Contribuição Facultativa (%): ........................ | E14: =Entrada!D25 -> 0.055 | H14: Reserva Acumulada Normal - RAN: ....................................................................... | I14: =I15+I16 -> 110476.88
D15: Dados Calculados | H15: Conta Participante - CPART: ....................................................................... | I15: =ROUND(FV((1+I6)^(1/12)-1,(E26-I3)/30.4375,-E20,0)+FV(I6,(E26-I3)/365.25,-E20,0),2) -> 55238.44
D16: Idade atual (anos): ............................................................................ | E16: =TRUNC((I3-E7)/365.25,0) -> 53 | H16: Conta Patrocinadora - CPATR: ....................................................................... | I16: =I15 -> 55238.44
D17: Valor da Remuneração de Participação: ............................................ | E17: =ROUND(MAX(E12-E31,0),2) -> 5915.1 | H17: Aporte Extraordinário (Lei 12618, 17, IV): ..................................... | I17: =ROUND(IF(E9="S",I14*(35/E10-1),IF(E8="F",I14*(35/30-1),0)),2) -> 0
D18: Valor Total da Contribuição Básica: ............................................. | E18: =ROUND(E17*E13,2) -> 502.78 | H18: Aporte Inicial na Aposentadoria: ....................................................................... | I18: =FV(I6,Entrada!D31,0,-Entrada!D27) -> 0
D19: Valor Total da Contribuição Facultativa: ..................................... | E19: =ROUND(E17*E14,2) -> 325.33 | H19: Reserva Acumulada Suplementar - RAS: ....................................................................... | I19: =ROUND(FV((1+I6)^(1/12)-1,(E26-I3)/30.4375,-E21,0)+FV(I6,(E26-I3)/365.25,-E21,0),2) -> 44169.3
D20: Valor da Contribuição Básica para a Conta Individual: ........................ | E20: =ROUND((1-I10-I9)*E18,2) -> 406.86 | H20: Reserva Individual Total: ....................................................................... | I20: =I14+I18+I19+I17 -> 154646.18
D21: Valor da Contribuição Facultativa para a Conta Individual: ......... | E21: =ROUND((E14*(1-I11))*E17,2) -> 325.33 | H21: Benefícios Projetados
D22: Valor da Contribuição Básica para FCBE: ........................ | E22: =ROUND((I9)*E18,2) -> 65.75 | H22: Valor do Benefício Projetado na Funpresp-Jud: ....................................................................... | I22: =SUM(I23:I24) -> 898.7
D23: Valor da Contribuição Básica para Desp Adm: ........................... | E23: =ROUND((I10)*E18,2) -> 30.17 | H23: Aposentadoria Normal (Base: RAN): ....................................................................... | I23: =ROUND((I14+I17)/(PV((1+I6)^(1/12)-1,VLOOKUP(YEAR(E7)&"-"&E28,Exp.Vida!$A$2:$E$14401,IF(E8="M",4,5),FALSE)*12,-1,0)+PV(I6,VLOOKUP(YEAR(E7)&"-"&E28,Exp.Vida!$A$2:$E$14401,IF(E8="M",4,5),FALSE),-1,0)),2) -> 642.16
D24: Valor da Contribuição Facultativa para a Desp Adm: ................ | E24: =ROUND((I11)*E19,2) -> 0 | H24: Benefício Suplementar: (Base: RAS + Aporte Inicial):................... | I24: =IF(I18+I19>0,ROUND((I19+I18)/(PV((1+I6)^(1/12)-1,E11,-1,0)+PV(I6,E11/12,-1,0)),2),0) -> 256.54
D25: Dados Projetados | H25: Valor do Benefício Projetado no RPPS: ....................................................................... | I25: =E31 -> 5839.45
D26: Data prevista para aposentadoria: ...................................................] | E26: =Entrada!D30 -> 2027-07-17 | H26: Valor total da renda na aposentadoria: ............................................................................. | I26: =I22+I25 -> 6738.15
D27: Tempo a decorrer até a aposentadoria (anos): ...................................... | E27: =E28-E16 -> 9 | H27: Índice de Reposição
D28: Idade na Aposentadoria (anos): ......................................................... | E28: =ROUND((E26-E7)/365.25,0) -> 62 | H28: Benefício Funpresp / Remuneração de Participação: .......................... | I28: =I22/E17 -> 0.1519331879
D29: Expectativa de vida na aposentadoria (anos): ..................................... | E29: =Entrada!D32 -> 23.21461419 | H29: Renda na Aposentadoria / Base de Contribuição: ....................................................................... | I29: =I26/E12 -> 0.5732378248
C30: DADOS DO RGPS
D31: Valor do Teto RGPS (R$): ....................................................... | E31: ='Sim_Patro_3,5'!E31 -> 5839.45
D32: Versão 1.3 - 31/8/2013

Sheet Sim_Vinc_3,5 (hidden)
C2: SIMULADOR DE BENEFÍCIOS PROGRAMADOS DA FUNPRESP-JUD
C3: Módulo Participante Vinculado | H3: Data da Simulação: | I3: =Entrada!F7 -> 21/3/2019
C4: DADOS DO SERVIDOR | G4: DADOS PLANO DE BENEFÍCIOS
D5: Informações Cadastrais | H5: Hipóteses Atuariais
D6: Tipo de Participante: ........................................................................... | E6: =Entrada!D12 -> Patrocinado | H6: % Taxa Real de Juros (anual): ....................................................................... | I6: 0.035
D7: Data de Nascimento: ......................................................................... | E7: =Entrada!D13 -> 1965-07-17 | H7: Tábua de Mortalidade: ....................................................................... | I7: RP-2000 Geracional
D8: Sexo: ........................................................................................ | E8: =Entrada!F11 -> M | H8: Plano de Custeio
D9: Aplica Aposentadoria Especial?: .......................................................... | E9: =Entrada!D19 -> N | H9: % Custeio do FCBE: ....................................................................... | I9: 0
D10: Tempo Exigido para Aposentadoria Especial (anos): ............... | E10: =Entrada!D20 -> 0 | H10: % Custeio Administrativo s/ Contrib. Vinculada: ....................................................................... | I10: 0.07
D11: Prazo para Recebimento do Benefício Suplementar (meses): ...................................... | E11: =IF(Entrada!D26="","",Entrada!D26) -> 279 | H11: % Custeio Administrativo s/ Contrib. Facultativa: ....................................................................... | I11: 0
D12: Informações de Remuneração | G12: RESULTADOS PROJETADOS
D13: % Desejado para Contribuição Vinculada: ................................................. | E13: =Entrada!D24 -> 0.085 | H13: Reservas Projetadas
D14: % Desejado para Contribuição Facultativa (%): ........................ | E14: =Entrada!D25 -> 0.055 | H14: Reserva Acumulada Normal - RAN: ....................................................................... | I14: =I15+I16 -> 0
D15: Dados Calculados | H15: Conta Participante - CPART: ....................................................................... | I15: 0
D16: Idade atual (anos): ............................................................................ | E16: =Entrada!D15 -> 53.67777778 | H16: Conta Patrocinadora - CPATR: ....................................................................... | I16: =I15 -> 0
D17: Valor da Remuneração de Participação: ............................................ | E17: =Entrada!D23 -> 0 | H17: Aporte Extraordinário (Lei 12618, 17, IV): ..................................... | I17: =ROUND(IF(E9="S",I14*(35/E10-1),IF(E8="F",I14*(35/30-1),0)),2) -> 0
D18: Valor Total da Contribuição Vinculada: ............................................. | E18: =ROUND(E17*E13,2) -> 0 | H18: Aporte Inicial na Aposentadoria: ....................................................................... | I18: =FV(I6,Entrada!D31,0,-Entrada!D27) -> 0
D19: Valor Total da Contribuição Facultativa: ..................................... | E19: =ROUND(E17*E14,2) -> 0 | H19: Reserva Acumulada Suplementar - RAS: ....................................................................... | I19: =ROUND(FV((1+I6)^(1/12)-1,(E26-I3)/30.4375,-E20-E21,0)+FV(I6,(E26-I3)/365.25,-E20-E21,0),2) -> 0 | K19: =ROUND(FV((1+I6)^(1/12)-1,(E26-I3)/30.4375,-E20,0)+FV(I6,(E26-I3)/365.25,-E20,0),2) -> 0 | L19: =ROUND(FV((1+I6)^(1/12)-1,(E26-I3)/30.4375,-E21,0)+FV(I6,(E26-I3)/365.25,-E21,0),2) -> 0 | M19: =K19+L19 -> 0
D20: Valor da Contribuição Vinculada para a Conta Individual: ........................ | E20: =ROUND((1-I10-I9)*E18,2) -> 0 | H20: Reserva Individual Total: ....................................................................... | I20: =I14+I18+I19 -> 0
D21: Valor da Contribuição Facultativa para a Conta Individual: ......... | E21: =ROUND((E14*(1-I11))*E17,2) -> 0 | H21: Benefícios Projetados
D22: Valor da Contribuição Vinculada para FCBE: ........................ | E22: =ROUND((I9)*E18,2) -> 0 | H22: Valor do Benefício Projetado na Funpresp-Jud: ....................................................................... | I22: =SUM(I23:I24) -> 0
D23: Valor da Contribuição Vinculada para Desp Adm: ........................... | E23: =ROUND((I10)*E18,2) -> 0 | H23: Aposentadoria Normal (Base: RAN): ...................................................................... | I23: =ROUND(I14/(PV((1+I6)^(1/12)-1,IF(E11="",VLOOKUP(YEAR(E7)&"-"&E28,Exp.Vida!$A$2:$E$14401,IF(E8="M",4,5),FALSE)*12,E11),-1,0)+PV(I6,IF(E11="",VLOOKUP(YEAR(E7)&"-"&E28,Exp.Vida!$A$2:$E$14401,IF(E8="M",4,5),FALSE),E11),-1,0)),2) -> 0
D24: Valor da Contribuição Facultativa para a Desp Adm: ................. | E24: =ROUND((I11)*E19,2) -> 0 | H24: Benefício Suplementar: (Base: RAS + Aporte Inicial):.................... | I24: =ROUND((I19+I18)/(PV((1+I6)^(1/12)-1,E11,-1,0)+PV(I6,E11/12,-1,0)),2) -> 0
D25: Dados Projetados | H25: Índice de Reposição
D26: Data prevista para aposentadoria: ...................................................] | E26: =Entrada!D30 -> 2027-07-17 | H26: Benefício Funpresp / Remuneração de Participação: .......................... | I26: =I22/E17 -> 
D27: Tempo a decorrer até a aposentadoria (anos): ...................................... | E27: =E28-E16 -> 8.322222222
D28: Idade na Aposentadoria (anos): ......................................................... | E28: =ROUND((E26-E7)/365.25,0) -> 62
D29: Expectativa de vida na aposentadoria (anos): ..................................... | E29: =Entrada!D32 -> 23.21461419
D30: Versão 1.3 - 31/5/2013

Sheet Sim_Vinc_4 (hidden)
C2: SIMULADOR DE BENEFÍCIOS PROGRAMADOS DA FUNPRESP-JUD
C3: Módulo Participante Vinculado | H3: Data da Simulação: | I3: =Entrada!F7 -> 21/3/2019
C4: DADOS DO SERVIDOR | G4: DADOS PLANO DE BENEFÍCIOS
D5: Informações Cadastrais | H5: Hipóteses Atuariais
D6: Tipo de Participante: ........................................................................... | E6: =Entrada!D12 -> Patrocinado | H6: % Taxa Real de Juros (anual): ....................................................................... | I6: 0.04
D7: Data de Nascimento: ......................................................................... | E7: =Entrada!D13 -> 1965-07-17 | H7: Tábua de Mortalidade: ....................................................................... | I7: RP-2000 Geracional
D8: Sexo: ........................................................................................ | E8: =Entrada!F11 -> M | H8: Plano de Custeio
D9: Aplica Aposentadoria Especial?: .......................................................... | E9: =Entrada!D19 -> N | H9: % Custeio do FCBE: ....................................................................... | I9: 0
D10: Tempo Exigido para Aposentadoria Especial (anos): ............... | E10: =Entrada!D20 -> 0 | H10: % Custeio Administrativo s/ Contrib. Vinculada: ....................................................................... | I10: 0.07
D11: Prazo para Recebimento do Benefício Suplementar (meses): ...................................... | E11: =IF(Entrada!D26="","",Entrada!D26) -> 279 | H11: % Custeio Administrativo s/ Contrib. Facultativa: ....................................................................... | I11: 0
D12: Informações de Remuneração | G12: RESULTADOS PROJETADOS
D13: % Desejado para Contribuição Vinculada: ................................................. | E13: =Entrada!D24 -> 0.085 | H13: Reservas Projetadas
D14: % Desejado para Contribuição Facultativa (%): ........................ | E14: =Entrada!D25 -> 0.055 | H14: Reserva Acumulada Normal - RAN: ....................................................................... | I14: =I15+I16 -> 0
D15: Dados Calculados | H15: Conta Participante - CPART: ....................................................................... | I15: 0
D16: Idade atual (anos): ............................................................................ | E16: =Entrada!D15 -> 53.67777778 | H16: Conta Patrocinadora - CPATR: ....................................................................... | I16: =I15 -> 0
D17: Valor da Remuneração de Participação: ............................................ | E17: =Entrada!D23 -> 0 | H17: Aporte Extraordinário (Lei 12618, 17, IV): ..................................... | I17: =ROUND(IF(E9="S",I14*(35/E10-1),IF(E8="F",I14*(35/30-1),0)),2) -> 0
D18: Valor Total da Contribuição Vinculada: ............................................. | E18: =ROUND(E17*E13,2) -> 0 | H18: Aporte Inicial na Aposentadoria: ....................................................................... | I18: =FV(I6,Entrada!D31,0,-Entrada!D27) -> 0
D19: Valor Total da Contribuição Facultativa: ..................................... | E19: =ROUND(E17*E14,2) -> 0 | H19: Reserva Acumulada Suplementar - RAS: ....................................................................... | I19: =ROUND(FV((1+I6)^(1/12)-1,(E26-I3)/30.4375,-E20-E21,0)+FV(I6,(E26-I3)/365.25,-E20-E21,0),2) -> 0 | K19: =ROUND(FV((1+I6)^(1/12)-1,(E26-I3)/30.4375,-E20,0)+FV(I6,(E26-I3)/365.25,-E20,0),2) -> 0 | L19: =ROUND(FV((1+I6)^(1/12)-1,(E26-I3)/30.4375,-E21,0)+FV(I6,(E26-I3)/365.25,-E21,0),2) -> 0 | M19: =K19+L19 -> 0
D20: Valor da Contribuição Vinculada para a Conta Individual: ........................ | E20: =ROUND((1-I10-I9)*E18,2) -> 0 | H20: Reserva Individual Total: ....................................................................... | I20: =I14+I18+I19 -> 0
D21: Valor da Contribuição Facultativa para a Conta Individual: ......... | E21: =ROUND((E14*(1-I11))*E17,2) -> 0 | H21: Benefícios Projetados
D22: Valor da Contribuição Vinculada para FCBE: ........................ | E22: =ROUND((I9)*E18,2) -> 0 | H22: Valor do Benefício Projetado na Funpresp-Jud: ....................................................................... | I22: =SUM(I23:I24) -> 0
D23: Valor da Contribuição Vinculada para Desp Adm: ........................... | E23: =ROUND((I10)*E18,2) -> 0 | H23: Aposentadoria Normal (Base: RAN): ...................................................................... | I23: =ROUND((I14)/(PV((1+I6)^(1/12)-1,IF(E11="",VLOOKUP(YEAR(E7)&"-"&E28,Exp.Vida!$A$2:$E$14401,IF(E8="M",4,5),FALSE)*12,E11),-1,0)+PV(I6,IF(E11="",VLOOKUP(YEAR(E7)&"-"&E28,Exp.Vida!$A$2:$E$14401,IF(E8="M",4,5),FALSE),E11),-1,0)),2) -> 0
D24: Valor da Contribuição Facultativa para a Desp Adm: ................. | E24: =ROUND((I11)*E19,2) -> 0 | H24: Benefício Suplementar: (Base: RAS + Aporte Inicial):.................... | I24: =ROUND((I19+I18)/(PV((1+I6)^(1/12)-1,E11,-1,0)+PV(I6,E11/12,-1,0)),2) -> 0
D25: Dados Projetados | H25: Índice de Reposição
D26: Data prevista para aposentadoria: ...................................................] | E26: =Entrada!D30 -> 2027-07-17 | H26: Benefício Funpresp / Remuneração de Participação: .......................... | I26: =I22/E17 -> 
D27: Tempo a decorrer até a aposentadoria (anos): ...................................... | E27: =E28-E16 -> 8.322222222
D28: Idade na Aposentadoria (anos): ......................................................... | E28: =ROUND((E26-E7)/365.25,0) -> 62
D29: Expectativa de vida na aposentadoria (anos): ..................................... | E29: =Entrada!D32 -> 23.21461419
D30: Versão 1.3 - 31/5/2013

Sheet Sim_Vinc_4,5 (hidden)
C2: SIMULADOR DE BENEFÍCIOS PROGRAMADOS DA FUNPRESP-JUD
C3: Módulo Participante Vinculado | H3: Data da Simulação: | I3: =Entrada!F7 -> 21/3/2019
C4: DADOS DO SERVIDOR | G4: DADOS PLANO DE BENEFÍCIOS
D5: Informações Cadastrais | H5: Hipóteses Atuariais
D6: Tipo de Participante: ........................................................................... | E6: =Entrada!D12 -> Patrocinado | H6: % Taxa Real de Juros (anual): ....................................................................... | I6: 0.045
D7: Data de Nascimento: ......................................................................... | E7: =Entrada!D13 -> 1965-07-17 | H7: Tábua de Mortalidade: ....................................................................... | I7: RP-2000 Geracional
D8: Sexo: ........................................................................................ | E8: =Entrada!F11 -> M | H8: Plano de Custeio
D9: Aplica Aposentadoria Especial?: .......................................................... | E9: =Entrada!D19 -> N | H9: % Custeio do FCBE: ....................................................................... | I9: 0
D10: Tempo Exigido para Aposentadoria Especial (anos): ............... | E10: =Entrada!D20 -> 0 | H10: % Custeio Administrativo s/ Contrib. Vinculada: ....................................................................... | I10: 0.07
D11: Prazo para Recebimento do Benefício Suplementar (meses): ...................................... | E11: =IF(Entrada!D26="","",Entrada!D26) -> 279 | H11: % Custeio Administrativo s/ Contrib. Facultativa: ....................................................................... | I11: 0
D12: Informações de Remuneração | G12: RESULTADOS PROJETADOS
D13: % Desejado para Contribuição Vinculada: ................................................. | E13: =Entrada!D24 -> 0.085 | H13: Reservas Projetadas
D14: % Desejado para Contribuição Facultativa (%): ........................ | E14: =Entrada!D25 -> 0.055 | H14: Reserva Acumulada Normal - RAN: ....................................................................... | I14: =I15+I16 -> 0
D15: Dados Calculados | H15: Conta Participante - CPART: ....................................................................... | I15: 0
D16: Idade atual (anos): ............................................................................ | E16: =Entrada!D15 -> 53.67777778 | H16: Conta Patrocinadora - CPATR: ....................................................................... | I16: =I15 -> 0
D17: Valor da Remuneração de Participação: ............................................ | E17: =Entrada!D23 -> 0 | H17: Aporte Extraordinário (Lei 12618, 17, IV): ..................................... | I17: =ROUND(IF(E9="S",I14*(35/E10-1),IF(E8="F",I14*(35/30-1),0)),2) -> 0
D18: Valor Total da Contribuição Vinculada: ............................................. | E18: =ROUND(E17*E13,2) -> 0 | H18: Aporte Inicial na Aposentadoria: ....................................................................... | I18: =FV(I6,Entrada!D31,0,-Entrada!D27) -> 0
D19: Valor Total da Contribuição Facultativa: ..................................... | E19: =ROUND(E17*E14,2) -> 0 | H19: Reserva Acumulada Suplementar - RAS: ....................................................................... | I19: =ROUND(FV((1+I6)^(1/12)-1,(E26-I3)/30.4375,-E20-E21,0)+FV(I6,(E26-I3)/365.25,-E20-E21,0),2) -> 0 | K19: =ROUND(FV((1+I6)^(1/12)-1,(E26-I3)/30.4375,-E20,0)+FV(I6,(E26-I3)/365.25,-E20,0),2) -> 0 | L19: =ROUND(FV((1+I6)^(1/12)-1,(E26-I3)/30.4375,-E21,0)+FV(I6,(E26-I3)/365.25,-E21,0),2) -> 0 | M19: =K19+L19 -> 0
D20: Valor da Contribuição Vinculada para a Conta Individual: ........................ | E20: =ROUND((1-I10-I9)*E18,2) -> 0 | H20: Reserva Individual Total: ....................................................................... | I20: =I14+I18+I19 -> 0
D21: Valor da Contribuição Facultativa para a Conta Individual: ......... | E21: =ROUND((E14*(1-I11))*E17,2) -> 0 | H21: Benefícios Projetados
D22: Valor da Contribuição Vinculada para FCBE: ........................ | E22: =ROUND((I9)*E18,2) -> 0 | H22: Valor do Benefício Projetado na Funpresp-Jud: ....................................................................... | I22: =SUM(I23:I24) -> 0
D23: Valor da Contribuição Vinculada para Desp Adm: ........................... | E23: =ROUND((I10)*E18,2) -> 0 | H23: Aposentadoria Normal (Base: RAN): ...................................................................... | I23: =ROUND((I14)/(PV((1+I6)^(1/12)-1,IF(E11="",VLOOKUP(YEAR(E7)&"-"&E28,Exp.Vida!$A$2:$E$14401,IF(E8="M",4,5),FALSE)*12,E11),-1,0)+PV(I6,IF(E11="",VLOOKUP(YEAR(E7)&"-"&E28,Exp.Vida!$A$2:$E$14401,IF(E8="M",4,5),FALSE),E11),-1,0)),2) -> 0
D24: Valor da Contribuição Facultativa para a Desp Adm: ................. | E24: =ROUND((I11)*E19,2) -> 0 | H24: Benefício Suplementar: (Base: RAS + Aporte Inicial):.................... | I24: =ROUND((I19+I18)/(PV((1+I6)^(1/12)-1,E11,-1,0)+PV(I6,E11/12,-1,0)),2) -> 0
D25: Dados Projetados | H25: Índice de Reposição
D26: Data prevista para aposentadoria: ...................................................] | E26: =Entrada!D30 -> 2027-07-17 | H26: Benefício Funpresp / Remuneração de Participação: .......................... | I26: =I22/E17 -> 
D27: Tempo a decorrer até a aposentadoria (anos): ...................................... | E27: =E28-E16 -> 8.322222222
D28: Idade na Aposentadoria (anos): ......................................................... | E28: =ROUND((E26-E7)/365.25,0) -> 62
D29: Expectativa de vida na aposentadoria (anos): ..................................... | E29: =Entrada!D32 -> 23.21461419
D30: Versão 1.3 - 31/5/2013

Sheet Sim_Vinc_5 (hidden)
C2: SIMULADOR DE BENEFÍCIOS PROGRAMADOS DA FUNPRESP-JUD
C3: Módulo Participante Vinculado | H3: Data da Simulação: | I3: =Entrada!F7 -> 21/3/2019
C4: DADOS DO SERVIDOR | G4: DADOS PLANO DE BENEFÍCIOS
D5: Informações Cadastrais | H5: Hipóteses Atuariais
D6: Tipo de Participante: ........................................................................... | E6: =Entrada!D12 -> Patrocinado | H6: % Taxa Real de Juros (anual): ....................................................................... | I6: 0.05
D7: Data de Nascimento: ......................................................................... | E7: =Entrada!D13 -> 1965-07-17 | H7: Tábua de Mortalidade: ....................................................................... | I7: RP-2000 Geracional
D8: Sexo: ........................................................................................ | E8: =Entrada!F11 -> M | H8: Plano de Custeio
D9: Aplica Aposentadoria Especial?: .......................................................... | E9: =Entrada!D19 -> N | H9: % Custeio do FCBE: ....................................................................... | I9: 0
D10: Tempo Exigido para Aposentadoria Especial (anos): ............... | E10: =Entrada!D20 -> 0 | H10: % Custeio Administrativo s/ Contrib. Vinculada: ....................................................................... | I10: 0.07
D11: Prazo para Recebimento do Benefício Suplementar (meses): ...................................... | E11: =IF(Entrada!D26="","",Entrada!D26) -> 279 | H11: % Custeio Administrativo s/ Contrib. Facultativa: ....................................................................... | I11: 0
D12: Informações de Remuneração | G12: RESULTADOS PROJETADOS
D13: % Desejado para Contribuição Vinculada: ................................................. | E13: =Entrada!D24 -> 0.085 | H13: Reservas Projetadas
D14: % Desejado para Contribuição Facultativa (%): ........................ | E14: =Entrada!D25 -> 0.055 | H14: Reserva Acumulada Normal - RAN: ....................................................................... | I14: =I15+I16 -> 0
D15: Dados Calculados | H15: Conta Participante - CPART: ....................................................................... | I15: 0
D16: Idade atual (anos): ............................................................................ | E16: =Entrada!D15 -> 53.67777778 | H16: Conta Patrocinadora - CPATR: ....................................................................... | I16: =I15 -> 0
D17: Valor da Remuneração de Participação: ............................................ | E17: =Entrada!D23 -> 0 | H17: Aporte Extraordinário (Lei 12618, 17, IV): ..................................... | I17: =ROUND(IF(E9="S",I14*(35/E10-1),IF(E8="F",I14*(35/30-1),0)),2) -> 0
D18: Valor Total da Contribuição Vinculada: ............................................. | E18: =ROUND(E17*E13,2) -> 0 | H18: Aporte Inicial na Aposentadoria: ....................................................................... | I18: =FV(I6,Entrada!D31,0,-Entrada!D27) -> 0
D19: Valor Total da Contribuição Facultativa: ..................................... | E19: =ROUND(E17*E14,2) -> 0 | H19: Reserva Acumulada Suplementar - RAS: ....................................................................... | I19: =ROUND(FV((1+I6)^(1/12)-1,(E26-I3)/30.4375,-E20-E21,0)+FV(I6,(E26-I3)/365.25,-E20-E21,0),2) -> 0 | K19: =ROUND(FV((1+I6)^(1/12)-1,(E26-I3)/30.4375,-E20,0)+FV(I6,(E26-I3)/365.25,-E20,0),2) -> 0 | L19: =ROUND(FV((1+I6)^(1/12)-1,(E26-I3)/30.4375,-E21,0)+FV(I6,(E26-I3)/365.25,-E21,0),2) -> 0 | M19: =K19+L19 -> 0
D20: Valor da Contribuição Vinculada para a Conta Individual: ........................ | E20: =ROUND((1-I10-I9)*E18,2) -> 0 | H20: Reserva Individual Total: ....................................................................... | I20: =I14+I18+I19 -> 0
D21: Valor da Contribuição Facultativa para a Conta Individual: ......... | E21: =ROUND((E14*(1-I11))*E17,2) -> 0 | H21: Benefícios Projetados
D22: Valor da Contribuição Vinculada para FCBE: ........................ | E22: =ROUND((I9)*E18,2) -> 0 | H22: Valor do Benefício Projetado na Funpresp-Jud: ....................................................................... | I22: =SUM(I23:I24) -> 0
D23: Valor da Contribuição Vinculada para Desp Adm: ........................... | E23: =ROUND((I10)*E18,2) -> 0 | H23: Aposentadoria Normal (Base: RAN): ...................................................................... | I23: =ROUND((I14)/(PV((1+I6)^(1/12)-1,IF(E11="",VLOOKUP(YEAR(E7)&"-"&E28,Exp.Vida!$A$2:$E$14401,IF(E8="M",4,5),FALSE)*12,E11),-1,0)+PV(I6,IF(E11="",VLOOKUP(YEAR(E7)&"-"&E28,Exp.Vida!$A$2:$E$14401,IF(E8="M",4,5),FALSE),E11),-1,0)),2) -> 0
D24: Valor da Contribuição Facultativa para a Desp Adm: ................. | E24: =ROUND((I11)*E19,2) -> 0 | H24: Benefício Suplementar: (Base: RAS + Aporte Inicial):.................... | I24: =ROUND((I19+I18)/(PV((1+I6)^(1/12)-1,E11,-1,0)+PV(I6,E11/12,-1,0)),2) -> 0
D25: Dados Projetados | H25: Índice de Reposição
D26: Data prevista para aposentadoria: ...................................................] | E26: =Entrada!D30 -> 2027-07-17 | H26: Benefício Funpresp / Remuneração de Participação: .......................... | I26: =I22/E17 -> 
D27: Tempo a decorrer até a aposentadoria (anos): ...................................... | E27: =E28-E16 -> 8.322222222
D28: Idade na Aposentadoria (anos): ......................................................... | E28: =ROUND((E26-E7)/365.25,0) -> 62
D29: Expectativa de vida na aposentadoria (anos): ..................................... | E29: =Entrada!D32 -> 23.21461419
D30: Versão 1.3 - 31/5/2013

Sheet Sim_Vinc_5,5 (hidden)
C2: SIMULADOR DE BENEFÍCIOS PROGRAMADOS DA FUNPRESP-JUD
C3: Módulo Participante Vinculado | H3: Data da Simulação: | I3: =Entrada!F7 -> 21/3/2019
C4: DADOS DO SERVIDOR | G4: DADOS PLANO DE BENEFÍCIOS
D5: Informações Cadastrais | H5: Hipóteses Atuariais
D6: Tipo de Participante: ........................................................................... | E6: =Entrada!D12 -> Patrocinado | H6: % Taxa Real de Juros (anual): ....................................................................... | I6: 0.055
D7: Data de Nascimento: ......................................................................... | E7: =Entrada!D13 -> 1965-07-17 | H7: Tábua de Mortalidade: ....................................................................... | I7: RP-2000 Geracional
D8: Sexo: ........................................................................................ | E8: =Entrada!F11 -> M | H8: Plano de Custeio
D9: Aplica Aposentadoria Especial?: .......................................................... | E9: =Entrada!D19 -> N | H9: % Custeio do FCBE: ....................................................................... | I9: 0
D10: Tempo Exigido para Aposentadoria Especial (anos): ............... | E10: =Entrada!D20 -> 0 | H10: % Custeio Administrativo s/ Contrib. Vinculada: ....................................................................... | I10: 0.07
D11: Prazo para Recebimento do Benefício Suplementar (meses): ...................................... | E11: =IF(Entrada!D26="","",Entrada!D26) -> 279 | H11: % Custeio Administrativo s/ Contrib. Facultativa: ....................................................................... | I11: 0
D12: Informações de Remuneração | G12: RESULTADOS PROJETADOS
D13: % Desejado para Contribuição Vinculada: ................................................. | E13: =Entrada!D24 -> 0.085 | H13: Reservas Projetadas
D14: % Desejado para Contribuição Facultativa (%): ........................ | E14: =Entrada!D25 -> 0.055 | H14: Reserva Acumulada Normal - RAN: ....................................................................... | I14: =I15+I16 -> 0
D15: Dados Calculados | H15: Conta Participante - CPART: ....................................................................... | I15: 0
D16: Idade atual (anos): ............................................................................ | E16: =Entrada!D15 -> 53.67777778 | H16: Conta Patrocinadora - CPATR: ....................................................................... | I16: =I15 -> 0
D17: Valor da Remuneração de Participação: ............................................ | E17: =Entrada!D23 -> 0 | H17: Aporte Extraordinário (Lei 12618, 17, IV): ..................................... | I17: =ROUND(IF(E9="S",I14*(35/E10-1),IF(E8="F",I14*(35/30-1),0)),2) -> 0
D18: Valor Total da Contribuição Vinculada: ............................................. | E18: =ROUND(E17*E13,2) -> 0 | H18: Aporte Inicial na Aposentadoria: ....................................................................... | I18: =FV(I6,Entrada!D31,0,-Entrada!D27) -> 0
D19: Valor Total da Contribuição Facultativa: ..................................... | E19: =ROUND(E17*E14,2) -> 0 | H19: Reserva Acumulada Suplementar - RAS: ....................................................................... | I19: =ROUND(FV((1+I6)^(1/12)-1,(E26-I3)/30.4375,-E20-E21,0)+FV(I6,(E26-I3)/365.25,-E20-E21,0),2) -> 0 | K19: =ROUND(FV((1+I6)^(1/12)-1,(E26-I3)/30.4375,-E20,0)+FV(I6,(E26-I3)/365.25,-E20,0),2) -> 0 | L19: =ROUND(FV((1+I6)^(1/12)-1,(E26-I3)/30.4375,-E21,0)+FV(I6,(E26-I3)/365.25,-E21,0),2) -> 0 | M19: =K19+L19 -> 0
D20: Valor da Contribuição Vinculada para a Conta Individual: ........................ | E20: =ROUND((1-I10-I9)*E18,2) -> 0 | H20: Reserva Individual Total: ....................................................................... | I20: =I14+I18+I19 -> 0
D21: Valor da Contribuição Facultativa para a Conta Individual: ......... | E21: =ROUND((E14*(1-I11))*E17,2) -> 0 | H21: Benefícios Projetados
D22: Valor da Contribuição Vinculada para FCBE: ........................ | E22: =ROUND((I9)*E18,2) -> 0 | H22: Valor do Benefício Projetado na Funpresp-Jud: ....................................................................... | I22: =SUM(I23:I24) -> 0
D23: Valor da Contribuição Vinculada para Desp Adm: ........................... | E23: =ROUND((I10)*E18,2) -> 0 | H23: Aposentadoria Normal (Base: RAN): ...................................................................... | I23: =ROUND((I14)/(PV((1+I6)^(1/12)-1,IF(E11="",VLOOKUP(YEAR(E7)&"-"&E28,Exp.Vida!$A$2:$E$14401,IF(E8="M",4,5),FALSE)*12,E11),-1,0)+PV(I6,IF(E11="",VLOOKUP(YEAR(E7)&"-"&E28,Exp.Vida!$A$2:$E$14401,IF(E8="M",4,5),FALSE),E11),-1,0)),2) -> 0
D24: Valor da Contribuição Facultativa para a Desp Adm: ................. | E24: =ROUND((I11)*E19,2) -> 0 | H24: Benefício Suplementar: (Base: RAS + Aporte Inicial):.................... | I24: =ROUND((I19+I18)/(PV((1+I6)^(1/12)-1,E11,-1,0)+PV(I6,E11/12,-1,0)),2) -> 0
D25: Dados Projetados | H25: Índice de Reposição
D26: Data prevista para aposentadoria: ...................................................] | E26: =Entrada!D30 -> 2027-07-17 | H26: Benefício Funpresp / Remuneração de Participação: .......................... | I26: =I22/E17 -> 
D27: Tempo a decorrer até a aposentadoria (anos): ...................................... | E27: =E28-E16 -> 8.322222222
D28: Idade na Aposentadoria (anos): ......................................................... | E28: =ROUND((E26-E7)/365.25,0) -> 62
D29: Expectativa de vida na aposentadoria (anos): ..................................... | E29: =Entrada!D32 -> 23.21461419
D30: Versão 1.3 - 31/5/2013

Sheet Exp.Vida (hidden)
A1: Chave | B1: Ano_Nasc | C1: Idade | D1: Homens | E1: Mulheres | J1: Homens | K1: Mulheres
A2: =B2&"-"&C2 -> 2000-1 | B2: 2000 | C2: 1 | D2: 84.82994788 | E2: 85.52641711 | G2: =H2&"-"&I2 -> 2000-1 | H2: 2000 | I2: 1 | J2: 84.82994788 | K2: 85.52641711
A3: =B3&"-"&C3 -> 2000-2 | B3: 2000 | C3: 2 | D3: 83.8837003 | E3: 84.57499493 | G3: =H3&"-"&I3 -> 2000-2 | H3: 2000 | I3: 2 | J3: 83.8837003 | K3: 84.57499493
A4: 2000-3 | B4: 2000 | C4: 3 | D4: 82.918853 | E4: 83.60565649 | G4: 2000-3 | H4: 2000 | I4: 3 | J4: 82.918853 | K4: 83.60565649
A5: 2000-4 | B5: 2000 | C5: 4 | D5: 81.94712105 | E5: 82.62785089 | G5: 2000-4 | H5: 2000 | I5: 4 | J5: 81.94712105 | K5: 82.62785089
A6: 2000-5 | B6: 2000 | C6: 5 | D6: 80.96843738 | E6: 81.64393204 | G6: 2000-5 | H6: 2000 | I6: 5 | J6: 80.96843738 | K6: 81.64393204
A7: 2000-6 | B7: 2000 | C7: 6 | D7: 79.98736832 | E7: 80.65800526 | G7: 2000-6 | H7: 2000 | I7: 6 | J7: 79.98736832 | K7: 80.65800526
A8: 2000-7 | B8: 2000 | C8: 7 | D8: 79.00490366 | E8: 79.67075963 | G8: 2000-7 | H8: 2000 | I8: 7 | J8: 79.00490366 | K8: 79.67075963
A9: 2000-8 | B9: 2000 | C9: 8 | D9: 78.02118009 | E9: 78.68233324 | G9: 2000-8 | H9: 2000 | I9: 8 | J9: 78.02118009 | K9: 78.68233324
A10: 2000-9 | B10: 2000 | C10: 9 | D10: 77.03571921 | E10: 77.69231171 | G10: 2000-9 | H10: 2000 | I10: 9 | J10: 77.03571921 | K10: 77.69231171
A11: 2000-10 | B11: 2000 | C11: 10 | D11: 76.0493304 | E11: 76.70150693 | G11: 2000-10 | H11: 2000 | I11: 10 | J11: 76.0493304 | K11: 76.70150693
A12: 2000-11 | B12: 2000 | C12: 11 | D12: 75.06268645 | E12: 75.71046612 | G12: 2000-11 | H12: 2000 | I12: 11 | J12: 75.06268645 | K12: 75.71046612
A13: 2000-12 | B13: 2000 | C13: 12 | D13: 74.07603101 | E13: 74.71925484 | G13: 2000-12 | H13: 2000 | I13: 12 | J13: 74.07603101 | K13: 74.71925484
A14: 2000-13 | B14: 2000 | C14: 13 | D14: 73.089466 | E14: 73.72805148 | G14: 2000-13 | H14: 2000 | I14: 13 | J14: 73.089466 | K14: 73.72805148
A15: 2000-14 | B15: 2000 | C15: 14 | D15: 72.10313949 | E15: 72.73695937 | G15: 2000-14 | H15: 2000 | I15: 14 | J15: 72.10313949 | K15: 72.73695937
A16: 2000-15 | B16: 2000 | C16: 15 | D16: 71.11731533 | E16: 71.74620165 | G16: 2000-15 | H16: 2000 | I16: 15 | J16: 71.11731533 | K16: 71.74620165
A17: 2000-16 | B17: 2000 | C17: 16 | D17: 70.13184043 | E17: 70.75586663 | G17: 2000-16 | H17: 2000 | I17: 16 | J17: 70.13184043 | K17: 70.75586663
A18: 2000-17 | B18: 2000 | C18: 17 | D18: 69.14667427 | E18: 69.7657809 | G18: 2000-17 | H18: 2000 | I18: 17 | J18: 69.14667427 | K18: 69.7657809
A19: 2000-18 | B19: 2000 | C19: 18 | D19: 68.16187927 | E19: 68.77595348 | G19: 2000-18 | H19: 2000 | I19: 18 | J19: 68.16187927 | K19: 68.77595348
A20: 2000-19 | B20: 2000 | C20: 19 | D20: 67.17731415 | E20: 67.78605524 | G20: 2000-19 | H20: 2000 | I20: 19 | J20: 67.17731415 | K20: 67.78605524
A21: 2000-20 | B21: 2000 | C21: 20 | D21: 66.19294383 | E21: 66.79579602 | G21: 2000-20 | H21: 2000 | I21: 20 | J21: 66.19294383 | K21: 66.79579602
A22: 2000-21 | B22: 2000 | C22: 21 | D22: 65.20868921 | E22: 65.80511756 | G22: 2000-21 | H22: 2000 | I22: 21 | J22: 65.20868921 | K22: 65.80511756
A23: 2000-22 | B23: 2000 | C23: 22 | D23: 64.22475745 | E23: 64.81401731 | G23: 2000-22 | H23: 2000 | I23: 22 | J23: 64.22475745 | K23: 64.81401731
A24: 2000-23 | B24: 2000 | C24: 23 | D24: 63.24103256 | E24: 63.82272273 | G24: 2000-23 | H24: 2000 | I24: 23 | J24: 63.24103256 | K24: 63.82272273
A25: 2000-24 | B25: 2000 | C25: 24 | D25: 62.25781959 | E25: 62.83147213 | G25: 2000-24 | H25: 2000 | I25: 24 | J25: 62.25781959 | K25: 62.83147213
A26: 2000-25 | B26: 2000 | C26: 25 | D26: 61.27501035 | E26: 61.84032325 | G26: 2000-25 | H26: 2000 | I26: 25 | J26: 61.27501035 | K26: 61.84032325
A27: 2000-26 | B27: 2000 | C27: 26 | D27: 60.29296951 | E27: 60.84937696 | G27: 2000-26 | H27: 2000 | I27: 26 | J27: 60.29296951 | K27: 60.84937696
A28: 2000-27 | B28: 2000 | C28: 27 | D28: 59.31242055 | E28: 59.85892862 | G28: 2000-27 | H28: 2000 | I28: 27 | J28: 59.31242055 | K28: 59.85892862
A29: 2000-28 | B29: 2000 | C29: 28 | D29: 58.33214832 | E29: 58.8686012 | G29: 2000-28 | H29: 2000 | I29: 28 | J29: 58.33214832 | K29: 58.8686012
A30: 2000-29 | B30: 2000 | C30: 29 | D30: 57.35200626 | E30: 57.87850401 | G30: 2000-29 | H30: 2000 | I30: 29 | J30: 57.35200626 | K30: 57.87850401
A31: 2000-30 | B31: 2000 | C31: 30 | D31: 56.3723694 | E31: 56.88865415 | G31: 2000-30 | H31: 2000 | I31: 30 | J31: 56.3723694 | K31: 56.88865415
A32: 2000-31 | B32: 2000 | C32: 31 | D32: 55.39382873 | E32: 55.8997792 | G32: 2000-31 | H32: 2000 | I32: 31 | J32: 55.39382873 | K32: 55.8997792
A33: 2000-32 | B33: 2000 | C33: 32 | D33: 54.41740652 | E33: 54.91314827 | G33: 2000-32 | H33: 2000 | I33: 32 | J33: 54.41740652 | K33: 54.91314827
A34: 2000-33 | B34: 2000 | C34: 33 | D34: 53.44335965 | E34: 53.92799916 | G34: 2000-33 | H34: 2000 | I34: 33 | J34: 53.44335965 | K34: 53.92799916
A35: 2000-34 | B35: 2000 | C35: 34 | D35: 52.47183132 | E35: 52.9437662 | G35: 2000-34 | H35: 2000 | I35: 34 | J35: 52.47183132 | K35: 52.9437662
A36: 2000-35 | B36: 2000 | C36: 35 | D36: 51.50277168 | E36: 51.96014493 | G36: 2000-35 | H36: 2000 | I36: 35 | J36: 51.50277168 | K36: 51.96014493
A37: 2000-36 | B37: 2000 | C37: 36 | D37: 50.53604079 | E37: 50.9769322 | G37: 2000-36 | H37: 2000 | I37: 36 | J37: 50.53604079 | K37: 50.9769322
A38: 2000-37 | B38: 2000 | C38: 37 | D38: 49.57137483 | E38: 49.99394185 | G38: 2000-37 | H38: 2000 | I38: 37 | J38: 49.57137483 | K38: 49.99394185
A39: 2000-38 | B39: 2000 | C39: 38 | D39: 48.6084391 | E39: 49.01106681 | G39: 2000-38 | H39: 2000 | I39: 38 | J39: 48.6084391 | K39: 49.01106681
A40: 2000-39 | B40: 2000 | C40: 39 | D40: 47.64558662 | E40: 48.02829113 | G40: 2000-39 | H40: 2000 | I40: 39 | J40: 47.64558662 | K40: 48.02829113
A41: 2000-40 | B41: 2000 | C41: 40 | D41: 46.682474 | E41: 47.04563965 | G41: 2000-40 | H41: 2000 | I41: 40 | J41: 46.682474 | K41: 47.04563965
A42: 2000-41 | B42: 2000 | C42: 41 | D42: 45.71893232 | E42: 46.06387302 | G42: 2000-41 | H42: 2000 | I42: 41 | J42: 45.71893232 | K42: 46.06387302
A43: 2000-42 | B43: 2000 | C43: 42 | D43: 44.7549303 | E43: 45.08314802 | G43: 2000-42 | H43: 2000 | I43: 42 | J43: 44.7549303 | K43: 45.08314802
A44: 2000-43 | B44: 2000 | C44: 43 | D44: 43.79056971 | E44: 44.1035981 | G44: 2000-43 | H44: 2000 | I44: 43 | J44: 43.79056971 | K44: 44.1035981
A45: 2000-44 | B45: 2000 | C45: 44 | D45: 42.82593697 | E45: 43.12526513 | G45: 2000-44 | H45: 2000 | I45: 44 | J45: 42.82593697 | K45: 43.12526513
A46: 2000-45 | B46: 2000 | C46: 45 | D46: 41.86115076 | E46: 42.14817769 | G46: 2000-45 | H46: 2000 | I46: 45 | J46: 41.86115076 | K46: 42.14817769
A47: 2000-46 | B47: 2000 | C47: 46 | D47: 40.89625156 | E47: 41.17121262 | G47: 2000-46 | H47: 2000 | I47: 46 | J47: 40.89625156 | K47: 41.17121262
A48: 2000-47 | B48: 2000 | C48: 47 | D48: 39.93089459 | E48: 40.19422001 | G48: 2000-47 | H48: 2000 | I48: 47 | J48: 39.93089459 | K48: 40.19422001
A49: 2000-48 | B49: 2000 | C49: 48 | D49: 38.96503968 | E49: 39.21705754 | G49: 2000-48 | H49: 2000 | I49: 48 | J49: 38.96503968 | K49: 39.21705754
A50: 2000-49 | B50: 2000 | C50: 49 | D50: 37.99859238 | E50: 38.24071438 | G50: 2000-49 | H50: 2000 | I50: 49 | J50: 37.99859238 | K50: 38.24071438
A51: 2000-50 | B51: 2000 | C51: 50 | D51: 37.03147052 | E51: 37.26519231 | G51: 2000-50 | H51: 2000 | I51: 50 | J51: 37.03147052 | K51: 37.26519231
A52: 2000-51 | B52: 2000 | C52: 51 | D52: 36.06357157 | E52: 36.2918086 | G52: 2000-51 | H52: 2000 | I52: 51 | J52: 36.06357157 | K52: 36.2918086
A53: 2000-52 | B53: 2000 | C53: 52 | D53: 35.09697971 | E53: 35.32142545 | G53: 2000-52 | H53: 2000 | I53: 52 | J53: 35.09697971 | K53: 35.32142545
A54: 2000-53 | B54: 2000 | C54: 53 | D54: 34.12994104 | E54: 34.35569572 | G54: 2000-53 | H54: 2000 | I54: 53 | J54: 34.12994104 | K54: 34.35569572
A55: 2000-54 | B55: 2000 | C55: 54 | D55: 33.16427411 | E55: 33.39562644 | G55: 2000-54 | H55: 2000 | I55: 54 | J55: 33.16427411 | K55: 33.39562644
A56: 2000-55 | B56: 2000 | C56: 55 | D56: 32.20009512 | E56: 32.44250287 | G56: 2000-55 | H56: 2000 | I56: 55 | J56: 32.20009512 | K56: 32.44250287
A57: 2000-56 | B57: 2000 | C57: 56 | D57: 31.24092086 | E57: 31.49884772 | G57: 2000-56 | H57: 2000 | I57: 56 | J57: 31.24092086 | K57: 31.49884772
A58: 2000-57 | B58: 2000 | C58: 57 | D58: 30.28853876 | E58: 30.56779547 | G58: 2000-57 | H58: 2000 | I58: 57 | J58: 30.28853876 | K58: 30.56779547
A59: 2000-58 | B59: 2000 | C59: 58 | D59: 29.3421527 | E59: 29.64698467 | G59: 2000-58 | H59: 2000 | I59: 58 | J59: 29.3421527 | K59: 29.64698467
A60: 2000-59 | B60: 2000 | C60: 59 | D60: 28.40292703 | E60: 28.73316532 | G60: 2000-59 | H60: 2000 | I60: 59 | J60: 28.40292703 | K60: 28.73316532
A61: 2000-60 | B61: 2000 | C61: 60 | D61: 27.46816968 | E61: 27.82722934 | G61: 2000-60 | H61: 2000 | I61: 60 | J61: 27.46816968 | K61: 27.82722934
A62: 2000-61 | B62: 2000 | C62: 61 | D62: 26.53860749 | E62: 26.93039019 | G62: 2000-61 | H62: 2000 | I62: 61 | J62: 26.53860749 | K62: 26.93039019
A63: 2000-62 | B63: 2000 | C63: 62 | D63: 25.61956829 | E63: 26.04463504 | G63: 2000-62 | H63: 2000 | I63: 62 | J63: 25.61956829 | K63: 26.04463504
A64: 2000-63 | B64: 2000 | C64: 63 | D64: 24.70736797 | E64: 25.17050465 | G64: 2000-63 | H64: 2000 | I64: 63 | J64: 24.70736797 | K64: 25.17050465
A65: 2000-64 | B65: 2000 | C65: 64 | D65: 23.80891216 | E65: 24.3095633 | G65: 2000-64 | H65: 2000 | I65: 64 | J65: 23.80891216 | K65: 24.3095633
A66: 2000-65 | B66: 2000 | C66: 65 | D66: 22.91757892 | E66: 23.46015485 | G66: 2000-65 | H66: 2000 | I66: 65 | J66: 22.91757892 | K66: 23.46015485
A67: =B67&"-"&C67 -> 2000-66 | B67: 2000 | C67: 66 | D67: 22.03399903 | E67: 22.62299502 | G67: =H67&"-"&I67 -> 2000-66 | H67: 2000 | I67: 66 | J67: 22.03399903 | K67: 22.62299502
A68: 2000-67 | B68: 2000 | C68: 67 | D68: 21.16736804 | E68: 21.79934077 | G68: 2000-67 | H68: 2000 | I68: 67 | J68: 21.16736804 | K68: 21.79934077
A69: 2000-68 | B69: 2000 | C69: 68 | D69: 20.30840137 | E69: 20.98707407 | G69: 2000-68 | H69: 2000 | I69: 68 | J69: 20.30840137 | K69: 20.98707407
A70: 2000-69 | B70: 2000 | C70: 69 | D70: 19.44700669 | E70: 20.18585776 | G70: 2000-69 | H70: 2000 | I70: 69 | J70: 19.44700669 | K70: 20.18585776
A71: 2000-70 | B71: 2000 | C71: 70 | D71: 18.5919471 | E71: 19.39611775 | G71: 2000-70 | H71: 2000 | I71: 70 | J71: 18.5919471 | K71: 19.39611775
A72: 2000-71 | B72: 2000 | C72: 71 | D72: 17.73466155 | E72: 18.62265948 | G72: 2000-71 | H72: 2000 | I72: 71 | J72: 17.73466155 | K72: 18.62265948
A73: 2000-72 | B73: 2000 | C73: 72 | D73: 16.88293535 | E73: 17.84633505 | G73: 2000-72 | H73: 2000 | I73: 72 | J73: 16.88293535 | K73: 17.84633505
A74: 2000-73 | B74: 2000 | C74: 73 | D74: 16.03721011 | E74: 17.08334701 | G74: 2000-73 | H74: 2000 | I74: 73 | J74: 16.03721011 | K74: 17.08334701
A75: 2000-74 | B75: 2000 | C75: 74 | D75: 15.1978811 | E75: 16.31628316 | G75: 2000-74 | H75: 2000 | I75: 74 | J75: 15.1978811 | K75: 16.31628316
A76: 2000-75 | B76: 2000 | C76: 75 | D76: 14.36507157 | E76: 15.56113058 | G76: 2000-75 | H76: 2000 | I76: 75 | J76: 14.36507157 | K76: 15.56113058
A77: 2000-76 | B77: 2000 | C77: 76 | D77: 13.55236537 | E77: 14.7984372 | G77: 2000-76 | H77: 2000 | I77: 76 | J77: 13.55236537 | K77: 14.7984372
A78: 2000-77 | B78: 2000 | C78: 77 | D78: 12.74639118 | E78: 14.04502697 | G78: 2000-77 | H78: 2000 | I78: 77 | J78: 12.74639118 | K78: 14.04502697
A79: 2000-78 | B79: 2000 | C79: 78 | D79: 11.96263407 | E79: 13.32141124 | G79: 2000-78 | H79: 2000 | I79: 78 | J79: 11.96263407 | K79: 13.32141124
A80: 2000-79 | B80: 2000 | C80: 79 | D80: 11.20341764 | E80: 12.60833719 | G80: 2000-79 | H80: 2000 | I80: 79 | J80: 11.20341764 | K80: 12.60833719
A81: 2000-80 | B81: 2000 | C81: 80 | D81: 10.47161996 | E81: 11.90604176 | G81: 2000-80 | H81: 2000 | I81: 80 | J81: 10.47161996 | K81: 11.90604176
A82: 2000-81 | B82: 2000 | C82: 81 | D82: 9.770461062 | E82: 11.21459627 | G82: 2000-81 | H82: 2000 | I82: 81 | J82: 9.770461062 | K82: 11.21459627
A83: 2000-82 | B83: 2000 | C83: 82 | D83: 9.106217626 | E83: 10.53401937 | G83: 2000-82 | H83: 2000 | I83: 82 | J83: 9.106217626 | K83: 10.53401937
A84: 2000-83 | B84: 2000 | C84: 83 | D84: 8.483449989 | E84: 9.86430637 | G84: 2000-83 | H84: 2000 | I84: 83 | J84: 8.483449989 | K84: 9.86430637
A85: 2000-84 | B85: 2000 | C85: 84 | D85: 7.87220552 | E85: 9.20531854 | G85: 2000-84 | H85: 2000 | I85: 84 | J85: 7.87220552 | K85: 9.20531854
A86: 2000-85 | B86: 2000 | C86: 85 | D86: 7.307028552 | E86: 8.556758747 | G86: 2000-85 | H86: 2000 | I86: 85 | J86: 7.307028552 | K86: 8.556758747
A87: 2000-86 | B87: 2000 | C87: 86 | D87: 6.752255184 | E87: 7.951573006 | G87: 2000-86 | H87: 2000 | I87: 86 | J87: 6.752255184 | K87: 7.951573006
A88: 2000-87 | B88: 2000 | C88: 87 | D88: 6.205468885 | E88: 7.397044085 | G88: 2000-87 | H88: 2000 | I88: 87 | J88: 6.205468885 | K88: 7.397044085
A89: 2000-88 | B89: 2000 | C89: 88 | D89: 5.708874607 | E89: 6.902239444 | G89: 2000-88 | H89: 2000 | I89: 88 | J89: 5.708874607 | K89: 6.902239444
A90: 2000-89 | B90: 2000 | C90: 89 | D90: 5.270744848 | E90: 6.426684131 | G90: 2000-89 | H90: 2000 | I90: 89 | J90: 5.270744848 | K90: 6.426684131
A91: 2000-90 | B91: 2000 | C91: 90 | D91: 4.842752265 | E91: 6.023383334 | G91: 2000-90 | H91: 2000 | I91: 90 | J91: 4.842752265 | K91: 6.023383334
A92: 2000-91 | B92: 2000 | C92: 91 | D92: 4.482395132 | E92: 5.642449546 | G92: 2000-91 | H92: 2000 | I92: 91 | J92: 4.482395132 | K92: 5.642449546
A93: 2000-92 | B93: 2000 | C93: 92 | D93: 4.126783569 | E93: 5.280260487 | G93: 2000-92 | H93: 2000 | I93: 92 | J93: 4.126783569 | K93: 5.280260487
A94: 2000-93 | B94: 2000 | C94: 93 | D94: 3.842355426 | E94: 4.931575416 | G94: 2000-93 | H94: 2000 | I94: 93 | J94: 3.842355426 | K94: 4.931575416
A95: 2000-94 | B95: 2000 | C95: 94 | D95: 3.5623314 | E95: 4.663581171 | G95: 2000-94 | H95: 2000 | I95: 94 | J95: 3.5623314 | K95: 4.663581171
A96: 2000-95 | B96: 2000 | C96: 95 | D96: 3.278695527 | E96: 4.408406987 | G96: 2000-95 | H96: 2000 | I96: 95 | J96: 3.278695527 | K96: 4.408406987
A97: 2000-96 | B97: 2000 | C97: 96 | D97: 3.069776834 | E97: 4.15920353 | G97: 2000-96 | H97: 2000 | I97: 96 | J97: 3.069776834 | K97: 4.15920353
A98: 2000-97 | B98: 2000 | C98: 97 | D98: 2.858014136 | E98: 3.907657918 | G98: 2000-97 | H98: 2000 | I98: 97 | J98: 2.858014136 | K98: 3.907657918
A99: 2000-98 | B99: 2000 | C99: 98 | D99: 2.633250251 | E99: 3.735895873 | G99: 2000-98 | H99: 2000 | I99: 98 | J99: 2.633250251 | K99: 3.735895873
A100: 2000-99 | B100: 2000 | C100: 99 | D100: 2.488310012 | E100: 3.561290558 | G100: 2000-99 | H100: 2000 | I100: 99 | J100: 2.488310012 | K100: 3.561290558
A101: 2000-100 | B101: 2000 | C101: 100 | D101: 2.337877172 | E101: 3.373955274 | G101: 2000-100 | H101: 2000 | I101: 100 | J101: 2.337877172 | K101: 3.373955274
A102: 2000-101 | B102: 2000 | C102: 101 | D102: 2.171580168 | E102: 3.161431644 | G102: 2000-101 | H102: 2000 | I102: 101 | J102: 2.171580168 | K102: 3.161431644
A103: 2000-102 | B103: 2000 | C103: 102 | D103: 2.106256849 | E103: 3.024300146 | G103: 2000-102 | H103: 2000 | I103: 102 | J103: 2.106256849 | K103: 3.024300146
A104: 2000-103 | B104: 2000 | C104: 103 | D104: 2.05645154 | E104: 2.886040743 | G104: 2000-103 | H104: 2000 | I104: 103 | J104: 2.05645154 | K104: 2.886040743
A105: 2000-104 | B105: 2000 | C105: 104 | D105: 2.022775447 | E105: 2.750931586 | G105: 2000-104 | H105: 2000 | I105: 104 | J105: 2.022775447 | K105: 2.750931586
A106: 2000-105 | B106: 2000 | C106: 105 | D106: 2.004577238 | E106: 2.622195987 | G106: 2000-105 | H106: 2000 | I106: 105 | J106: 2.004577238 | K106: 2.622195987
A107: 2000-106 | B107: 2000 | C107: 106 | D107: 1.998824538 | E107: 2.502184215 | G107: 2000-106 | H107: 2000 | I107: 106 | J107: 1.998824538 | K107: 2.502184215
A108: 2000-107 | B108: 2000 | C108: 107 | D108: 1.998040896 | E108: 2.392539776 | G108: 2000-107 | H108: 2000 | I108: 107 | J108: 1.998040896 | K108: 2.392539776
A109: 2000-108 | B109: 2000 | C109: 108 | D109: 1.996734826 | E109: 2.294344655 | G109: 2000-108 | H109: 2000 | I109: 108 | J109: 1.996734826 | K109: 2.294344655
A110: 2000-109 | B110: 2000 | C110: 109 | D110: 1.994558044 | E110: 2.208203579 | G110: 2000-109 | H110: 2000 | I110: 109 | J110: 1.994558044 | K110: 2.208203579
A111: 2000-110 | B111: 2000 | C111: 110 | D111: 1.990930074 | E111: 2.134262893 | G111: 2000-110 | H111: 2000 | I111: 110 | J111: 1.990930074 | K111: 2.134262893
A112: 2000-111 | B112: 2000 | C112: 111 | D112: 1.984883456 | E112: 2.072090996 | G112: 2000-111 | H112: 2000 | I112: 111 | J112: 1.984883456 | K112: 2.072090996
A113: 2000-112 | B113: 2000 | C113: 112 | D113: 1.97480576 | E113: 2.020370204 | G113: 2000-112 | H113: 2000 | I113: 112 | J113: 1.97480576 | K113: 2.020370204
A114: 2000-113 | B114: 2000 | C114: 113 | D114: 1.9580096 | E114: 1.976233465 | G114: 2000-113 | H114: 2000 | I114: 113 | J114: 1.9580096 | K114: 1.976233465
A115: 2000-114 | B115: 2000 | C115: 114 | D115: 1.930016 | E115: 1.934048645 | G115: 2000-114 | H115: 2000 | I115: 114 | J115: 1.930016 | K115: 1.934048645
A116: 2000-115 | B116: 2000 | C116: 115 | D116: 1.88336 | E116: 1.88336 | G116: 2000-115 | H116: 2000 | I116: 115 | J116: 1.88336 | K116: 1.88336
A117: 2000-116 | B117: 2000 | C117: 116 | D117: 1.8056 | E117: 1.8056 | G117: 2000-116 | H117: 2000 | I117: 116 | J117: 1.8056 | K117: 1.8056
A118: 2000-117 | B118: 2000 | C118: 117 | D118: 1.676 | E118: 1.676 | G118: 2000-117 | H118: 2000 | I118: 117 | J118: 1.676 | K118: 1.676
A119: 2000-118 | B119: 2000 | C119: 118 | D119: 1.46 | E119: 1.46 | G119: 2000-118 | H119: 2000 | I119: 118 | J119: 1.46 | K119: 1.46
A120: 2000-119 | B120: 2000 | C120: 119 | D120: 1.1 | E120: 1.1 | G120: 2000-119 | H120: 2000 | I120: 119 | J120: 1.1 | K120: 1.1
A121: 2000-120 | B121: 2000 | C121: 120 | D121: 0.5 | E121: 0.5 | G121: 2000-120 | H121: 2000 | I121: 120 | J121: 0.5 | K121: 0.5
A122: 1999-1 | B122: 1999 | C122: 1 | D122: 84.79983748 | E122: 85.5188331 | G122: 1999-1 | H122: 1999 | I122: 1 | J122: 84.79983748 | K122: 85.5188331
A123: 1999-2 | B123: 1999 | C123: 2 | D123: 83.79983748 | E123: 84.5188331 | G123: 1999-2 | H123: 1999 | I123: 2 | J123: 83.79983748 | K123: 84.5188331
A124: 1999-3 | B124: 1999 | C124: 3 | D124: 82.83567182 | E124: 83.55009973 | G124: 1999-3 | H124: 1999 | I124: 3 | J124: 82.83567182 | K124: 83.55009973
A125: 1999-4 | B125: 1999 | C125: 4 | D125: 81.86448786 | E125: 82.57273207 | G125: 1999-4 | H125: 1999 | I125: 4 | J125: 81.86448786 | K125: 82.57273207
A126: 1999-5 | B126: 1999 | C126: 5 | D126: 80.88621726 | E126: 81.58913046 | G126: 1999-5 | H126: 1999 | I126: 5 | J126: 80.88621726 | K126: 81.58913046
A127: 1999-6 | B127: 1999 | C127: 6 | D127: 79.90551491 | E127: 80.60348124 | G127: 1999-6 | H127: 1999 | I127: 6 | J127: 79.90551491 | K127: 80.60348124
A128: 1999-7 | B128: 1999 | C128: 7 | D128: 78.92338976 | E128: 79.61648709 | G128: 1999-7 | H128: 1999 | I128: 7 | J128: 78.92338976 | K128: 79.61648709
A129: 1999-8 | B129: 1999 | C129: 8 | D129: 77.93998119 | E129: 78.62828883 | G129: 1999-8 | H129: 1999 | I129: 8 | J129: 77.93998119 | K129: 78.62828883
A130: 1999-9 | B130: 1999 | C130: 9 | D130: 76.95480154 | E130: 77.63846393 | G130: 1999-9 | H130: 1999 | I130: 9 | J130: 76.95480154 | K130: 77.63846393
A131: =B131&"-"&C131 -> 1999-10 | B131: 1999 | C131: 10 | D131: 75.96867588 | E131: 76.6478403 | G131: =H131&"-"&I131 -> 1999-10 | H131: 1999 | I131: 10 | J131: 75.96867588 | K131: 76.6478403
A132: 1999-11 | B132: 1999 | C132: 11 | D132: 74.98229 | E132: 75.6569759 | G132: 1999-11 | H132: 1999 | I132: 11 | J132: 74.98229 | K132: 75.6569759
A133: 1999-12 | B133: 1999 | C133: 12 | D133: 73.99589226 | E133: 74.66593763 | G133: 1999-12 | H133: 1999 | I133: 12 | J133: 73.99589226 | K133: 74.66593763
A134: 1999-13 | B134: 1999 | C134: 13 | D134: 73.00958655 | E134: 73.67490736 | G134: 1999-13 | H134: 1999 | I134: 13 | J134: 73.00958655 | K134: 73.67490736
A135: 1999-14 | B135: 1999 | C135: 14 | D135: 72.0235238 | E135: 72.68399047 | G135: 1999-14 | H135: 1999 | I135: 14 | J135: 72.0235238 | K135: 72.68399047
A136: 1999-15 | B136: 1999 | C136: 15 | D136: 71.03795819 | E136: 71.69339529 | G136: 1999-15 | H136: 1999 | I136: 15 | J136: 71.03795819 | K136: 71.69339529
A137: 1999-16 | B137: 1999 | C137: 16 | D137: 70.05274802 | E137: 70.70321017 | G137: 1999-16 | H137: 1999 | I137: 16 | J137: 70.05274802 | K137: 70.70321017
A138: 1999-17 | B138: 1999 | C138: 17 | D138: 69.06785206 | E138: 69.71326789 | G138: 1999-17 | H138: 1999 | I138: 17 | J138: 69.06785206 | K138: 69.71326789
A139: 1999-18 | B139: 1999 | C139: 18 | D139: 68.08333381 | E139: 68.7235771 | G139: 1999-18 | H139: 1999 | I139: 18 | J139: 68.08333381 | K139: 68.7235771
A140: 1999-19 | B140: 1999 | C140: 19 | D140: 67.09904944 | E140: 67.73381447 | G140: 1999-19 | H140: 1999 | I140: 19 | J140: 67.09904944 | K140: 67.73381447
A141: 1999-20 | B141: 1999 | C141: 20 | D141: 66.11496321 | E141: 66.74369593 | G141: 1999-20 | H141: 1999 | I141: 20 | J141: 66.11496321 | K141: 66.74369593
A142: 1999-21 | B142: 1999 | C142: 21 | D142: 65.13099456 | E142: 65.75316161 | G142: 1999-21 | H142: 1999 | I142: 21 | J142: 65.13099456 | K142: 65.75316161
A143: 1999-22 | B143: 1999 | C143: 22 | D143: 64.14733776 | E143: 64.76220809 | G143: 1999-22 | H143: 1999 | I143: 22 | J143: 64.14733776 | K143: 64.76220809
A144: 1999-23 | B144: 1999 | C144: 23 | D144: 63.1638743 | E144: 63.77105695 | G144: 1999-23 | H144: 1999 | I144: 23 | J144: 63.1638743 | K144: 63.77105695
A145: 1999-24 | B145: 1999 | C145: 24 | D145: 62.18089607 | E145: 62.77994138 | G145: 1999-24 | H145: 1999 | I145: 24 | J145: 62.18089607 | K145: 62.77994138
A146: 1999-25 | B146: 1999 | C146: 25 | D146: 61.19829163 | E146: 61.78891988 | G146: 1999-25 | H146: 1999 | I146: 25 | J146: 61.19829163 | K146: 61.78891988
A147: 1999-26 | B147: 1999 | C147: 26 | D147: 60.21640935 | E147: 60.79809447 | G147: 1999-26 | H147: 1999 | I147: 26 | J147: 60.21640935 | K147: 60.79809447
A148: 1999-27 | B148: 1999 | C148: 27 | D148: 59.23595278 | E148: 59.80775394 | G148: 1999-27 | H148: 1999 | I148: 27 | J148: 59.23595278 | K148: 59.80775394
A149: 1999-28 | B149: 1999 | C149: 28 | D149: 58.25575394 | E149: 58.81753558 | G149: 1999-28 | H149: 1999 | I149: 28 | J149: 58.25575394 | K149: 58.81753558
A150: 1999-29 | B150: 1999 | C150: 29 | D150: 57.27568534 | E150: 57.82754992 | G150: 1999-29 | H150: 1999 | I150: 29 | J150: 57.27568534 | K150: 57.82754992
A151: 1999-30 | B151: 1999 | C151: 30 | D151: 56.29612337 | E151: 56.83781424 | G151: 1999-30 | H151: 1999 | I151: 30 | J151: 56.29612337 | K151: 56.83781424
A152: 1999-31 | B152: 1999 | C152: 31 | D152: 55.31766115 | E152: 55.84904156 | G152: 1999-31 | H152: 1999 | I152: 31 | J152: 55.31766115 | K152: 55.84904156
A153: 1999-32 | B153: 1999 | C153: 32 | D153: 54.34132459 | E153: 54.86250613 | G153: 1999-32 | H153: 1999 | I153: 32 | J153: 54.34132459 | K153: 54.86250613
A154: 1999-33 | B154: 1999 | C154: 33 | D154: 53.3673714 | E154: 53.87746288 | G154: 1999-33 | H154: 1999 | I154: 33 | J154: 53.3673714 | K154: 53.87746288
A155: 1999-34 | B155: 1999 | C155: 34 | D155: 52.39594515 | E155: 52.8933581 | G155: 1999-34 | H155: 1999 | I155: 34 | J155: 52.39594515 | K155: 52.8933581
A156: 1999-35 | B156: 1999 | C156: 35 | D156: 51.42699567 | E156: 51.90988642 | G156: 1999-35 | H156: 1999 | I156: 35 | J156: 51.42699567 | K156: 51.90988642
A157: 1999-36 | B157: 1999 | C157: 36 | D157: 50.46038239 | E157: 50.92684389 | G157: 1999-36 | H157: 1999 | I157: 36 | J157: 50.46038239 | K157: 50.92684389
A158: 1999-37 | B158: 1999 | C158: 37 | D158: 49.49584042 | E158: 49.94404313 | G158: 1999-37 | H158: 1999 | I158: 37 | J158: 49.49584042 | K158: 49.94404313
A159: 1999-38 | B159: 1999 | C159: 38 | D159: 48.53303375 | E159: 48.96137623 | G159: 1999-38 | H159: 1999 | I159: 38 | J159: 48.53303375 | K159: 48.96137623
A160: 1999-39 | B160: 1999 | C160: 39 | D160: 47.57034709 | E160: 47.97882731 | G160: 1999-39 | H160: 1999 | I160: 39 | J160: 47.57034709 | K160: 47.97882731
A161: 1999-40 | B161: 1999 | C161: 40 | D161: 46.60743543 | E161: 46.99642179 | G161: 1999-40 | H161: 1999 | I161: 40 | J161: 46.60743543 | K161: 46.99642179
A162: 1999-41 | B162: 1999 | C162: 41 | D162: 45.64412828 | E162: 46.01491335 | G162: 1999-41 | H162: 1999 | I162: 41 | J162: 45.64412828 | K162: 46.01491335
A163: 1999-42 | B163: 1999 | C163: 42 | D163: 44.68039336 | E163: 45.03446099 | G163: 1999-42 | H163: 1999 | I163: 42 | J163: 44.68039336 | K163: 45.03446099
A164: 1999-43 | B164: 1999 | C164: 43 | D164: 43.71633243 | E164: 44.05519996 | G164: 1999-43 | H164: 1999 | I164: 43 | J164: 43.71633243 | K164: 44.05519996
A165: 1999-44 | B165: 1999 | C165: 44 | D165: 42.75203205 | E165: 43.07717269 | G165: 1999-44 | H165: 1999 | I165: 44 | J165: 42.75203205 | K165: 43.07717269
A166: 1999-45 | B166: 1999 | C166: 45 | D166: 41.78761166 | E166: 42.10040813 | G166: 1999-45 | H166: 1999 | I166: 45 | J166: 41.78761166 | K166: 42.10040813
A167: 1999-46 | B167: 1999 | C167: 46 | D167: 40.82311195 | E167: 41.12379096 | G167: 1999-46 | H167: 1999 | I167: 46 | J167: 40.82311195 | K167: 41.12379096
A168: 1999-47 | B168: 1999 | C168: 47 | D168: 39.85818369 | E168: 40.14716919 | G168: 1999-47 | H168: 1999 | I168: 47 | J168: 39.85818369 | K168: 40.14716919
A169: 1999-48 | B169: 1999 | C169: 48 | D169: 38.89278529 | E169: 39.170398 | G169: 1999-48 | H169: 1999 | I169: 48 | J169: 38.89278529 | K169: 39.170398
A170: 1999-49 | B170: 1999 | C170: 49 | D170: 37.92681998 | E170: 38.1944597 | G170: 1999-49 | H170: 1999 | I170: 49 | J170: 37.92681998 | K170: 38.1944597
A171: 1999-50 | B171: 1999 | C171: 50 | D171: 36.96020322 | E171: 37.21935607 | G171: 1999-50 | H171: 1999 | I171: 50 | J171: 36.96020322 | K171: 37.21935607
A172: 1999-51 | B172: 1999 | C172: 51 | D172: 35.99282943 | E172: 36.24639924 | G172: 1999-51 | H172: 1999 | I172: 51 | J172: 35.99282943 | K172: 36.24639924
A173: 1999-52 | B173: 1999 | C173: 52 | D173: 35.02681749 | E173: 35.27645988 | G173: 1999-52 | H173: 1999 | I173: 52 | J173: 35.02681749 | K173: 35.27645988
A174: 1999-53 | B174: 1999 | C174: 53 | D174: 34.06038394 | E174: 34.31117235 | G174: 1999-53 | H174: 1999 | I174: 53 | J174: 34.06038394 | K174: 34.31117235
A175: 1999-54 | B175: 1999 | C175: 54 | D175: 33.09534596 | E175: 33.35153548 | G175: 1999-54 | H175: 1999 | I175: 54 | J175: 33.09534596 | K175: 33.35153548
A176: 1999-55 | B176: 1999 | C176: 55 | D176: 32.13182169 | E176: 32.39882263 | G176: 1999-55 | H176: 1999 | I176: 55 | J176: 32.13182169 | K176: 32.39882263
A177: 1999-56 | B177: 1999 | C177: 56 | D177: 31.17334955 | E177: 31.45554502 | G177: 1999-56 | H177: 1999 | I177: 56 | J177: 31.17334955 | K177: 31.45554502
A178: 1999-57 | B178: 1999 | C178: 57 | D178: 30.22173507 | E178: 30.52481298 | G178: 1999-57 | H178: 1999 | I178: 57 | J178: 30.22173507 | K178: 30.52481298
A179: 1999-58 | B179: 1999 | C179: 58 | D179: 29.27615558 | E179: 29.6042874 | G179: 1999-58 | H179: 1999 | I179: 58 | J179: 29.27615558 | K179: 29.6042874
A180: 1999-59 | B180: 1999 | C180: 59 | D180: 28.3377789 | E180: 28.69077552 | G180: 1999-59 | H180: 1999 | I180: 59 | J180: 28.3377789 | K180: 28.69077552
A181: 1999-60 | B181: 1999 | C181: 60 | D181: 27.40393012 | E181: 27.78517187 | G181: 1999-60 | H181: 1999 | I181: 60 | J181: 27.40393012 | K181: 27.78517187
A182: 1999-61 | B182: 1999 | C182: 61 | D182: 26.47534578 | E182: 26.88869351 | G182: 1999-61 | H182: 1999 | I182: 61 | J182: 26.47534578 | K182: 26.88869351
A183: 1999-62 | B183: 1999 | C183: 62 | D183: 25.55734368 | E183: 26.00333381 | G183: 1999-62 | H183: 1999 | I183: 62 | J183: 25.55734368 | K183: 26.00333381
A184: 1999-63 | B184: 1999 | C184: 63 | D184: 24.64626433 | E184: 25.12963452 | G184: 1999-63 | H184: 1999 | I184: 63 | J184: 24.64626433 | K184: 25.12963452
A185: 1999-64 | B185: 1999 | C185: 64 | D185: 23.74899649 | E185: 24.26916438 | G185: 1999-64 | H185: 1999 | I185: 64 | J185: 23.74899649 | K185: 24.26916438
A186: 1999-65 | B186: 1999 | C186: 65 | D186: 22.85893017 | E186: 23.42026067 | G186: 1999-65 | H186: 1999 | I186: 65 | J186: 22.85893017 | K186: 23.42026067
A187: 1999-66 | B187: 1999 | C187: 66 | D187: 21.97670308 | E187: 22.58364059 | G187: 1999-66 | H187: 1999 | I187: 66 | J187: 21.97670308 | K187: 22.58364059
A188: 1999-67 | B188: 1999 | C188: 67 | D188: 21.11148019 | E188: 21.76056432 | G188: 1999-67 | H188: 1999 | I188: 67 | J188: 21.11148019 | K188: 21.76056432
A189: 1999-68 | B189: 1999 | C189: 68 | D189: 20.25399751 | E189: 20.94890585 | G189: 1999-68 | H189: 1999 | I189: 68 | J189: 20.25399751 | K189: 20.94890585
A190: 1999-69 | B190: 1999 | C190: 69 | D190: 19.3941987 | E190: 20.14832597 | G190: 1999-69 | H190: 1999 | I190: 69 | J190: 19.3941987 | K190: 20.14832597
A191: 1999-70 | B191: 1999 | C191: 70 | D191: 18.54080331 | E191: 19.35925099 | G191: 1999-70 | H191: 1999 | I191: 70 | J191: 18.54080331 | K191: 19.35925099
A192: 1999-71 | B192: 1999 | C192: 71 | D192: 17.68529885 | E192: 18.58650059 | G192: 1999-71 | H192: 1999 | I192: 71 | J192: 17.68529885 | K192: 18.58650059
A193: 1999-72 | B193: 1999 | C193: 72 | D193: 16.83541915 | E193: 17.81109408 | G193: 1999-72 | H193: 1999 | I193: 72 | J193: 16.83541915 | K193: 17.81109408
A194: 1999-73 | B194: 1999 | C194: 73 | D194: 15.99161141 | E194: 17.04907189 | G194: 1999-73 | H194: 1999 | I194: 73 | J194: 15.99161141 | K194: 17.04907189
A195: =B195&"-"&C195 -> 1999-74 | B195: 1999 | C195: 74 | D195: 15.15427606 | E195: 16.28318844 | G195: =H195&"-"&I195 -> 1999-74 | H195: 1999 | I195: 74 | J195: 15.15427606 | K195: 16.28318844
A196: 1999-75 | B196: 1999 | C196: 75 | D196: 14.32353833 | E196: 15.52927279 | G196: 1999-75 | H196: 1999 | I196: 75 | J196: 14.32353833 | K196: 15.52927279
A197: 1999-76 | B197: 1999 | C197: 76 | D197: 13.5129588 | E197: 14.7680175 | G197: 1999-76 | H197: 1999 | I197: 76 | J197: 13.5129588 | K197: 14.7680175
A198: 1999-77 | B198: 1999 | C198: 77 | D198: 12.70918685 | E198: 14.01610155 | G198: 1999-77 | H198: 1999 | I198: 77 | J198: 12.70918685 | K198: 14.01610155
A199: 1999-78 | B199: 1999 | C199: 78 | D199: 11.92766314 | E199: 13.29387973 | G199: 1999-78 | H199: 1999 | I199: 78 | J199: 11.92766314 | K199: 13.29387973
A200: 1999-79 | B200: 1999 | C200: 79 | D200: 11.17068969 | E200: 12.58225335 | G200: 1999-79 | H200: 1999 | I200: 79 | J200: 11.17068969 | K200: 12.58225335
... 4300 more rows

Sheet Poupança (hidden)
B3: MÊS/ANO | C3: Rendimento Poupança | D3: TR | E3: Líquido TR | F3: IPCA | G3: Líquido IPCA
B4: 2012-07-01 | C4: 0.004134 | D4: 0.000144 | E4: =(1+C4)/(1+D4)-1 -> 0.003989425523 | F4: 0.0043 | G4: =(1+C4)/(1+F4)-1 -> -0.0001652892562
B5: 2012-08-01 | C5: 0.004134 | D5: 0.000123 | E5: =(1+C5)/(1+D5)-1 -> 0.004010506708 | F5: 0.0041 | G5: =(1+C5)/(1+F5)-1 -> 3.386116921e-05
B6: 2012-09-01 | C6: 0.004134 | D6: 0 | E6: 0.004134 | F6: 0.0057 | G6: -0.001557124391
B7: 2012-10-01 | C7: 0.004134 | D7: 0 | E7: 0.004134 | F7: 0.0059 | G7: -0.001755641714
B8: 2012-11-01 | C8: 0.004134 | D8: 0 | E8: 0.004134 | F8: 0.006 | G8: -0.001854870775
B9: 2012-12-01 | C9: 0.004273 | D9: 0 | E9: 0.004273 | F9: 0.0079 | G9: -0.003598571287
B10: 2013-01-01 | C10: 0.004828 | D10: 0 | E10: 0.004828 | F10: 0.0086 | G10: -0.003739837398
B11: 2013-02-01 | C11: 0.004973 | D11: 0 | E11: 0.004973 | F11: 0.006 | G11: -0.001020874751
B12: 2013-03-01 | C12: 0.004675 | D12: 0 | E12: 0.004675 | F12: 0.0047 | G12: -2.488304967e-05
B13: 2013-04-01 | C13: 0.004273 | D13: 0 | E13: 0.004273 | F13: 0.0055 | G13: -0.001220288414

Sheet Listas (hidden)
A2: Percentual | B2: Tipo | C2: Sexo | D2: Especial | E2: Tempo Especial | F2: % Contrib | G2: % Contrib Facultativa | H2: Prazo Suplementar Vinculado
A3: 0.11 | B3: Patrocinado | C3: M | D3: S | F3: 0.06 | G3: 0 | H3: 60
A4: 0.14 | B4: Vinculado | C4: F | D4: N | E4: 15 | F4: =F3+0.005 -> 0.065 | G4: 0.025 | H4: 61
C5: Masculino | E5: 20 | F5: =F4+0.005 -> 0.07 | G5: 0.03 | H5: 62
C6: Feminino | E6: 25 | F6: 0.075 | G6: 0.035 | H6: 63
F7: 0.08 | G7: 0.04 | H7: 64
F8: 0.085 | G8: 0.045 | H8: 65
F9: 0.09 | G9: 0.05 | H9: 66
F10: 0.095 | G10: 0.055 | H10: 67
F11: 0.1 | G11: 0.06 | H11: 68
F12: 0.105 | G12: 0.065 | H12: 69
F13: 0.11 | G13: 0.07 | H13: 70
F14: 0.115 | G14: 0.075 | H14: 71
F15: 0.12 | G15: 0.08 | H15: 72
F16: 0.125 | G16: 0.085 | H16: 73
F17: 0.13 | G17: 0.09 | H17: 74
F18: 0.135 | G18: 0.095 | H18: 75
F19: 0.14 | G19: 0.1 | H19: 76
F20: 0.145 | G20: 0.105 | H20: 77
F21: 0.15 | G21: 0.11 | H21: 78
F22: 0.155 | G22: 0.115 | H22: 79
F23: 0.16 | G23: 0.12 | H23: 80
F24: 0.165 | G24: 0.125 | H24: 81
F25: 0.17 | G25: 0.13 | H25: 82
F26: 0.175 | G26: 0.135 | H26: 83
F27: 0.18 | G27: 0.14 | H27: 84
F28: 0.185 | G28: 0.145 | H28: 85
F29: 0.19 | G29: 0.15 | H29: 86
F30: 0.195 | G30: 0.155 | H30: 87
F31: 0.2 | G31: 0.16 | H31: 88
F32: 0.205 | G32: 0.165 | H32: 89
F33: 0.21 | G33: 0.17 | H33: 90
F34: 0.215 | G34: 0.175 | H34: 91
F35: 0.22 | G35: 0.18 | H35: 92
G36: 0.185 | H36: 93
G37: 0.19 | H37: 94
G38: 0.195 | H38: 95
G39: 0.2 | H39: 96
G40: 0.205 | H40: 97
G41: 0.21 | H41: 98
G42: 0.215 | H42: 99
G43: 0.22 | H43: 100
G44: 0.225 | H44: 101
G45: 0.23 | H45: 102
G46: 0.235 | H46: 103
G47: 0.24 | H47: 104
G48: 0.245 | H48: 105
G49: 0.25 | H49: 106
G50: 0.255 | H50: 107
G51: 0.26 | H51: 108
G52: 0.265 | H52: 109
G53: 0.27 | H53: 110
G54: 0.275 | H54: 111
G55: 0.28 | H55: 112
G56: 0.285 | H56: 113
G57: 0.29 | H57: 114
G58: 0.295 | H58: 115
G59: 0.3 | H59: 116
G60: 0.305 | H60: 117
G61: 0.31 | H61: 118
G62: 0.315 | H62: 119
G63: 0.32 | H63: 120
G64: 0.325 | H64: 121
G65: 0.33 | H65: 122
G66: 0.335 | H66: 123
G67: 0.34 | H67: 124
G68: 0.345 | H68: 125
G69: 0.35 | H69: 126
G70: 0.355 | H70: 127
G71: 0.36 | H71: 128
G72: 0.365 | H72: 129
G73: 0.37 | H73: 130
G74: 0.375 | H74: 131
G75: 0.38 | H75: 132
G76: 0.385 | H76: 133
G77: 0.39 | H77: 134
G78: 0.395 | H78: 135
G79: 0.4 | H79: 136
G80: 0.405 | H80: 137
G81: 0.41 | H81: 138
G82: 0.415 | H82: 139
G83: 0.42 | H83: 140
G84: 0.425 | H84: 141
G85: 0.43 | H85: 142
G86: 0.435 | H86: 143
G87: 0.44 | H87: 144
G88: 0.445 | H88: 145
G89: 0.45 | H89: 146
G90: 0.455 | H90: 147
G91: 0.46 | H91: 148
G92: 0.465 | H92: 149
G93: 0.47 | H93: 150
G94: 0.475 | H94: 151
G95: 0.48 | H95: 152
G96: 0.485 | H96: 153
G97: 0.49 | H97: 154
G98: 0.495 | H98: 155
G99: 0.5 | H99: 156
G100: 0.505 | H100: 157
G101: 0.51 | H101: 158
G102: 0.515 | H102: 159
G103: 0.52 | H103: 160
G104: 0.525 | H104: 161
G105: 0.53 | H105: 162
G106: 0.535 | H106: 163
G107: 0.54 | H107: 164
G108: 0.545 | H108: 165
G109: 0.55 | H109: 166
G110: 0.555 | H110: 167
G111: 0.56 | H111: 168
G112: 0.565 | H112: 169
G113: 0.57 | H113: 170
G114: 0.575 | H114: 171
G115: 0.58 | H115: 172
G116: 0.585 | H116: 173
G117: 0.59 | H117: 174
G118: 0.595 | H118: 175
G119: 0.6 | H119: 176
G120: 0.605 | H120: 177
G121: 0.61 | H121: 178
G122: 0.615 | H122: 179
G123: 0.62 | H123: 180
G124: 0.625 | H124: 181
G125: 0.63 | H125: 182
G126: 0.635 | H126: 183
G127: 0.64 | H127: 184
G128: 0.645 | H128: 185
G129: 0.65 | H129: 186
G130: 0.655 | H130: 187
G131: 0.66 | H131: 188
G132: 0.665 | H132: 189
G133: 0.67 | H133: 190
G134: 0.675 | H134: 191
G135: 0.68 | H135: 192
G136: 0.685 | H136: 193
G137: 0.69 | H137: 194
G138: 0.695 | H138: 195
G139: 0.7 | H139: 196
H140: 197
H141: 198
H142: 199
H143: 200
H144: 201
H145: 202
H146: 203
H147: 204
H148: 205
H149: 206
H150: 207
H151: 208
H152: 209
H153: 210
H154: 211
H155: 212
H156: 213
H157: 214
H158: 215
H159: 216
H160: 217
H161: 218
H162: 219
H163: 220
H164: 221
H165: 222
H166: 223
H167: 224
H168: 225
H169: 226
H170: 227
H171: 228
H172: 229
H173: 230
H174: 231
H175: 232
H176: 233
H177: 234
H178: 235
H179: 236
H180: 237
H181: 238
H182: 239
H183: 240
H184: 241
H185: 242
H186: 243
H187: 244
H188: 245
H189: 246
H190: 247
H191: 248
H192: 249
H193: 250
H194: 251
H195: 252
H196: 253
H197: 254
H198: 255
H199: 256
H200: 257
H201: 258
... 42 more rows
